Workbook

Sheet RD 3
A1: Position RD 3 | B1: Position RD 2 | C1: Position RD 1 | D1: Name | E1: Duke | F1: UCONN | G1: Iowa | H1: Illinois | I1: Arizona | J1: Purdue | K1: Michigan | L1: Tennessee | M1: RD 3 Tally | N1: Bonus (6) | O1: RD 2 total | P1: RD 3 total
D2: AVERAGE | E2: 61 | F2: 55 | G2: 34 | H2: 54 | I2: 62 | J2: 57 | K2: 61 | L2: 42 | M2: =(SUM(E2:L2)) -> 426 | N2: =COUNTIF(E2:L2,">56")*10 -> 40 | O2: 2400 | P2: =M2+N2+O2 -> 2866
A3: 1 | B3: 1 | C3: 13 | D3: HOPELESS AT HOOPS AND BRIDGE (BRONX,NY) | E3: 64 | F3: 57 | G3: 39 | H3: 56 | I3: 62 | J3: 58 | K3: 63 | L3: 46 | M3: 445 | N3: 50 | O3: 2515 | P3: 3010
A4: 2 | B4: 2 | C4: 19 | D4: MATT HENSING (WAUKEE,IA) | E4: 63 | F4: 56 | G4: 39 | H4: 55 | I4: 64 | J4: 59 | K4: 62 | L4: 52 | M4: 450 | N4: 40 | O4: 2510 | P4: 3000
A5: 3 | B5: 3 | C5: 4 | D5: MARTY KELLY (NEW LENOX,IL) | E5: 60 | F5: 54 | G5: 43 | H5: 58 | I5: 64 | J5: 59 | K5: 62 | L5: 45 | M5: 445 | N5: 50 | O5: 2494 | P5: 2989
A6: 4 | B6: 7 | C6: 2 | D6: WILLIAM FORCE TERHUNE (ROCKFORD,IL) | E6: 64 | F6: 57 | G6: 36 | H6: 61 | I6: 63 | J6: 58 | K6: 62 | L6: 45 | M6: 446 | N6: 60 | O6: 2482 | P6: 2988
A7: 5 | B7: 6 | C7: 5 | D7: ALEXANDER PETER BERTHOUD (ROCKFORD,IL) | E7: 63 | F7: 53 | G7: 36 | H7: 60 | I7: 62 | J7: 58 | K7: 64 | L7: 45 | M7: 441 | N7: 50 | O7: 2483 | P7: 2974
A8: 6 | B8: 5 | C8: 3 | D8: ROBY (SCHAUMBURG,IL) | E8: 64 | F8: 57 | G8: 40 | H8: 56 | I8: 60 | J8: 63 | K8: 61 | L8: 36 | M8: 437 | N8: 50 | O8: 2485 | P8: 2972
A9: 7 | B9: 8 | C9: 18 | D9: JIM PIETRZAK (LA GRANGE,IL) | E9: 56 | F9: 54 | G9: 40 | H9: 57 | I9: 64 | J9: 59 | K9: 60 | L9: 51 | M9: 441 | N9: 40 | O9: 2481 | P9: 2962
A10: 8 | B10: 10 | C10: 15 | D10: JOHN KOWAL (MEDINA,OH) | E10: 63 | F10: 55 | G10: 38 | H10: 56 | I10: 64 | J10: 58 | K10: 61 | L10: 44 | M10: 439 | N10: 40 | O10: 2475 | P10: 2954
A11: 9 | B11: 4 | C11: 1 | D11: LKLK (SCHAUMBURG,IL) | E11: 61 | F11: 53 | G11: 42 | H11: 49 | I11: 59 | J11: 56 | K11: 63 | L11: 45 | M11: 428 | N11: 30 | O11: 2492 | P11: 2950
A12: 10 | B12: 9 | C12: 15 | D12: JEFF SEREMAK (VILLA PARK,IL) | E12: 64 | F12: 55 | G12: 37 | H12: 54 | I12: 62 | J12: 56 | K12: 63 | L12: 49 | M12: 440 | N12: 30 | O12: 2479 | P12: 2949
A13: 10 | B13: 15 | C13: 15 | D13: PHILIP SPENCER (ROCKFORD,IL) | E13: 63 | F13: 57 | G13: 36 | H13: 56 | I13: 64 | J13: 58 | K13: 62 | L13: 45 | M13: 441 | N13: 50 | O13: 2458 | P13: 2949
A14: 10 | B14: 27 | C14: 38 | D14: JOSH JAGUST (OAK PARK,IL) | E14: 63 | F14: 54 | G14: 39 | H14: 61 | I14: 64 | J14: 59 | K14: 60 | L14: 49 | M14: 449 | N14: 50 | O14: 2450 | P14: 2949
A15: 13 | B15: 16 | C15: 26 | D15: R. JAY BECKER 1 (DELRAY BEACH,FL) | E15: 64 | F15: 57 | G15: 38 | H15: 54 | I15: 63 | J15: 58 | K15: 62 | L15: 46 | M15: 442 | N15: 50 | O15: 2456 | P15: 2948
A16: 13 | B16: 16 | C16: 26 | D16: R. JAY BECKER 2 (DELRAY BEACH,FL) | E16: 63 | F16: 57 | G16: 38 | H16: 54 | I16: 64 | J16: 58 | K16: 62 | L16: 46 | M16: 442 | N16: 50 | O16: 2456 | P16: 2948
A17: 13 | B17: 24 | C17: 8 | D17: ROZIPOLLACK II (BOCA RATON,FL) | E17: 63 | F17: 57 | G17: 40 | H17: 56 | I17: 62 | J17: 58 | K17: 64 | L17: 44 | M17: 444 | N17: 50 | O17: 2454 | P17: 2948
A18: 16 | B18: 12 | C18: 10 | D18: K ADAMS 1 (SPRING LAKE,MI) | E18: 64 | F18: 56 | G18: 36 | H18: 55 | I18: 63 | J18: 58 | K18: 62 | L18: 47 | M18: 441 | N18: 40 | O18: 2466 | P18: 2947
A19: 16 | B19: 20 | C19: 26 | D19: JANET BECKER (DELRAY BEACH,FL) | E19: 64 | F19: 57 | G19: 38 | H19: 54 | I19: 62 | J19: 58 | K19: 63 | L19: 46 | M19: 442 | N19: 50 | O19: 2455 | P19: 2947
A20: 16 | B20: 20 | C20: 26 | D20: R. JAY BECKER 3 (DELRAY BEACH,FL) | E20: 63 | F20: 57 | G20: 38 | H20: 54 | I20: 62 | J20: 58 | K20: 64 | L20: 46 | M20: 442 | N20: 50 | O20: 2455 | P20: 2947
A21: 16 | B21: 20 | C21: 26 | D21: R. JAY BECKER 4 (DELRAY BEACH,FL) | E21: 64 | F21: 57 | G21: 38 | H21: 54 | I21: 63 | J21: 58 | K21: 62 | L21: 46 | M21: 442 | N21: 50 | O21: 2455 | P21: 2947
A22: 16 | B22: 20 | C22: 26 | D22: R. JAY BECKER 5 (DELRAY BEACH,FL) | E22: 63 | F22: 57 | G22: 38 | H22: 54 | I22: 64 | J22: 58 | K22: 62 | L22: 46 | M22: 442 | N22: 50 | O22: 2455 | P22: 2947
A23: 21 | B23: 13 | C23: 23 | D23: MARK COHEN (PALM COAST,FL) | E23: 60 | F23: 54 | G23: 35 | H23: 56 | I23: 62 | J23: 58 | K23: 64 | L23: 52 | M23: 441 | N23: 40 | O23: 2464 | P23: 2945
A24: 22 | B24: 30 | C24: 23 | D24: ROZIPOLLACK I (BOCA RATON,FL) | E24: 64 | F24: 57 | G24: 39 | H24: 56 | I24: 62 | J24: 58 | K24: 63 | L24: 46 | M24: 445 | N24: 50 | O24: 2448 | P24: 2943
A25: 23 | B25: 11 | C25: 50 | D25: ED LORGEREE I (BUFFALO GROVE,IL) | E25: 58 | F25: 46 | G25: 38 | H25: 57 | I25: 64 | J25: 56 | K25: 62 | L25: 51 | M25: 432 | N25: 40 | O25: 2467 | P25: 2939
A26: 23 | B26: 26 | C26: 22 | D26: KSOTTO (OVERLAND PARK,KS) | E26: 64 | F26: 58 | G26: 34 | H26: 54 | I26: 63 | J26: 57 | K26: 60 | L26: 46 | M26: 436 | N26: 50 | O26: 2453 | P26: 2939
A27: 25 | B27: 16 | C27: 14 | D27: MATT OLSON (LITTLETON,CO) | E27: 63 | F27: 56 | G27: 37 | H27: 55 | I27: 62 | J27: 58 | K27: 60 | L27: 47 | M27: 438 | N27: 40 | O27: 2456 | P27: 2934
A28: 26 | B28: 30 | C28: 38 | D28: GARY PIETRZAK (REDONDO BEACH,CA) | E28: 62 | F28: 57 | G28: 35 | H28: 52 | I28: 64 | J28: 58 | K28: 60 | L28: 47 | M28: 435 | N28: 50 | O28: 2448 | P28: 2933
A29: 27 | B29: 32 | C29: 58 | D29: WIMPY (WOOD DALE,IL) | E29: 63 | F29: 56 | G29: 43 | H29: 52 | I29: 64 | J29: 58 | K29: 60 | L29: 47 | M29: 443 | N29: 40 | O29: 2447 | P29: 2930
A30: 28 | B30: 16 | C30: 8 | D30: LKMY (SCHAUMBURG,IL) | E30: 63 | F30: 58 | G30: 37 | H30: 53 | I30: 64 | J30: 57 | K30: 60 | L30: 30 | M30: 422 | N30: 50 | O30: 2456 | P30: 2928
A31: 28 | B31: 38 | C31: 43 | D31: NICK JASPERSEN (TORRANCE,CA) | E31: 64 | F31: 57 | G31: 33 | H31: 56 | I31: 63 | J31: 58 | K31: 59 | L31: 50 | M31: 440 | N31: 50 | O31: 2438 | P31: 2928
A32: 30 | B32: 34 | C32: 26 | D32: DAVID INGLES 2 (GREENVILLE,MI) | E32: 62 | F32: 59 | G32: 25 | H32: 58 | I32: 56 | J32: 61 | K32: 64 | L32: 49 | M32: 434 | N32: 50 | O32: 2443 | P32: 2927
A33: 31 | B33: 24 | C33: 5 | D33: PAUL PARKS II (NORTH LAS VEGAS,NV) | E33: 64 | F33: 50 | G33: 43 | H33: 55 | I33: 63 | J33: 57 | K33: 60 | L33: 40 | M33: 432 | N33: 40 | O33: 2454 | P33: 2926
A34: 32 | B34: 29 | C34: 54 | D34: KEN PIETRZAK (SAUNDERSTOWN,RI) | E34: 59 | F34: 55 | G34: 36 | H34: 56 | I34: 64 | J34: 58 | K34: 62 | L34: 44 | M34: =(SUM(E34:L34)) -> 434 | N34: =COUNTIF(E34:L34,">56")*10 -> 40 | O34: 2449 | P34: =M34+N34+O34 -> 2923
A35: 33 | B35: 27 | C35: 23 | D35: BRIAN GERKE (LEES SUMMIT,MO) | E35: 62 | F35: 55 | G35: 44 | H35: 54 | I35: 64 | J35: 50 | K35: 60 | L35: 53 | M35: 442 | N35: 30 | O35: 2450 | P35: 2922
A36: 33 | B36: 33 | C36: 42 | D36: MICHELE HINNENDAE; (PRESQUE ISLE,WI) | E36: 63 | F36: 55 | G36: 35 | H36: 59 | I36: 64 | J36: 56 | K36: 60 | L36: 45 | M36: 437 | N36: 40 | O36: 2445 | P36: 2922
A37: 33 | B37: 53 | C37: 66 | D37: AL KLEEN11 (DAVIS,IL) | E37: 63 | F37: 58 | G37: 38 | H37: 61 | I37: 59 | J37: 62 | K37: 64 | L37: 43 | M37: 448 | N37: 60 | O37: 2414 | P37: 2922
A38: 36 | B38: 14 | C38: 12 | D38: YAHTZEE 2 (ALLEGAN,MI) | E38: 63 | F38: 59 | G38: 28 | H38: 52 | I38: 62 | J38: 53 | K38: 64 | L38: 38 | M38: 419 | N38: 40 | O38: 2461 | P38: 2920
A39: 37 | B39: 41 | C39: 48 | D39: JOEJOO3 (JENISON,MI) | E39: 58 | F39: 64 | G39: 38 | H39: 54 | I39: 63 | J39: 57 | K39: 60 | L39: 42 | M39: 436 | N39: 50 | O39: 2432 | P39: 2918
A40: 38 | B40: 41 | C40: 47 | D40: RAYBIK01 (PT ST LUCIE,FL) | E40: 64 | F40: 58 | G40: 30 | H40: 56 | I40: 61 | J40: 60 | K40: 63 | L40: 43 | M40: 435 | N40: 50 | O40: 2432 | P40: 2917
A41: 39 | B41: 40 | C41: 10 | D41: DAN ATLAS (EVERGREEN,CO) | E41: 62 | F41: 55 | G41: 40 | H41: 58 | I41: 64 | J41: 56 | K41: 61 | L41: 45 | M41: 441 | N41: 40 | O41: 2434 | P41: 2915
A42: 40 | B42: 44 | C42: 33 | D42: DAN KENNEY (LISLE,IL) | E42: 64 | F42: 58 | G42: 34 | H42: 55 | I42: 63 | J42: 57 | K42: 60 | L42: 42 | M42: 433 | N42: 50 | O42: 2431 | P42: 2914
A43: 41 | B43: 35 | C43: 19 | D43: HANK HEISE (OVERLAND PARK,KS) | E43: 63 | F43: 55 | G43: 37 | H43: 56 | I43: 64 | J43: 54 | K43: 62 | L43: 50 | M43: 441 | N43: 30 | O43: 2442 | P43: 2913
A44: 42 | B44: 36 | C44: 46 | D44: ERICH ADAMS 2 (WINTER PARK,FL) | E44: 63 | F44: 56 | G44: 35 | H44: 53 | I44: 62 | J44: 58 | K44: 64 | L44: 39 | M44: 430 | N44: 40 | O44: 2441 | P44: 2911
A45: 42 | B45: 37 | C45: 7 | D45: JAMES THOMAS 1 (HERNANDO,FL) | E45: 64 | F45: 53 | G45: 35 | H45: 54 | I45: 59 | J45: 62 | K45: 61 | L45: 44 | M45: 432 | N45: 40 | O45: 2439 | P45: 2911
A46: 44 | B46: 48 | C46: 62 | D46: K ADAMS 3 (SPRING LAKE,MI) | E46: 56 | F46: 62 | G46: 43 | H46: 63 | I46: 64 | J46: 59 | K46: 61 | L46: 31 | M46: 439 | N46: 50 | O46: 2419 | P46: 2908
A47: 45 | B47: 44 | C47: 48 | D47: JACK HINNENDAEL (PRESQUE ISLE,WI) | E47: 64 | F47: 57 | G47: 36 | H47: 53 | I47: 63 | J47: 55 | K47: 62 | L47: 43 | M47: 433 | N47: 40 | O47: 2431 | P47: 2904
A48: 46 | B48: 39 | C48: 58 | D48: GERRY SEXTON (RIDGEFIELD,CT) | E48: 56 | F48: 55 | G48: 37 | H48: 53 | I48: 64 | J48: 59 | K48: 60 | L48: 52 | M48: 436 | N48: 30 | O48: 2437 | P48: 2903
A49: 47 | B49: 46 | C49: 62 | D49: CATEY COHEN 1 (ELMHURST,IL) | E49: 61 | F49: 62 | G49: 15 | H49: 54 | I49: 64 | J49: 58 | K49: 60 | L49: 51 | M49: 425 | N49: 50 | O49: 2426 | P49: 2901
A50: 48 | B50: 41 | C50: 33 | D50: MARY SULLIVAN (FORT MYERS,FL) | E50: 61 | F50: 55 | G50: 25 | H50: 54 | I50: 59 | J50: 64 | K50: 62 | L50: 42 | M50: 422 | N50: 40 | O50: 2432 | P50: 2894
A51: 49 | B51: 47 | C51: 43 | D51: MICHAEL RUSSO I (BELMONT,MI) | E51: 59 | F51: 55 | G51: 29 | H51: 49 | I51: 64 | J51: 57 | K51: 60 | L51: 56 | M51: 429 | N51: 40 | O51: 2421 | P51: 2890
A52: 50 | B52: 53 | C52: 43 | D52: AL KLEEN (DAVIS,IL) | E52: 63 | F52: 59 | G52: 28 | H52: 55 | I52: 64 | J52: 56 | K52: 60 | L52: 46 | M52: 431 | N52: 40 | O52: 2414 | P52: 2885
A53: 50 | B53: 65 | C53: 61 | D53: BRADY SACK II (GRAND RAPIDS,MI) | E53: 63 | F53: 52 | G53: 36 | H53: 57 | I53: 64 | J53: 59 | K53: 62 | L53: 41 | M53: 434 | N53: 50 | O53: 2401 | P53: 2885
A54: 52 | B54: 50 | C54: 50 | D54: TIM REDDINGTON (NORWALK,CT) | E54: 63 | F54: 55 | G54: 32 | H54: 56 | I54: 64 | J54: 59 | K54: 60 | L54: 39 | M54: 428 | N54: 40 | O54: 2416 | P54: 2884
A55: 52 | B55: 72 | C55: 68 | D55: MATT STEHOUWER 2 (SPRING LAKE,MI) | E55: 63 | F55: 58 | G55: 40 | H55: 54 | I55: 64 | J55: 57 | K55: 61 | L55: 46 | M55: 443 | N55: 50 | O55: 2391 | P55: 2884
A56: 54 | B56: 61 | C56: 57 | D56: HARRY JAFFE 1 (CHANDLER,AZ) | E56: 63 | F56: 48 | G56: 33 | H56: 56 | I56: 62 | J56: 58 | K56: 64 | L56: 54 | M56: 438 | N56: 40 | O56: 2405 | P56: 2883
A57: 55 | B57: 61 | C57: 94 | D57: EEYORE (PRESQUE ISLE,WI) | E57: 64 | F57: 57 | G57: 36 | H57: 53 | I57: 63 | J57: 58 | K57: 54 | L57: 51 | M57: 436 | N57: 40 | O57: 2405 | P57: 2881
A58: 55 | B58: 64 | C58: 73 | D58: ADRIENNE COHEN (ELMHURST,IL) | E58: 62 | F58: 56 | G58: 55 | H58: 48 | I58: 64 | J58: 57 | K58: 61 | L58: 35 | M58: 438 | N58: 40 | O58: 2403 | P58: 2881
A59: 57 | B59: 71 | C59: 79 | D59: SCHEUERMAN2 (OAK PARK,IL) | E59: 63 | F59: 52 | G59: 31 | H59: 60 | I59: 62 | J59: 59 | K59: 64 | L59: 47 | M59: 438 | N59: 50 | O59: 2392 | P59: 2880
A60: 58 | B60: 48 | C60: 33 | D60: CUBSBUDMAN (PLAINFIELD,IL) | E60: 55 | F60: 61 | G60: 37 | H60: 56 | I60: 64 | J60: 58 | K60: 62 | L60: 26 | M60: 419 | N60: 40 | O60: 2419 | P60: 2878
A61: 59 | B61: 57 | C61: 81 | D61: PAUL PARKS I (NORTH LAS VEGAS,NV) | E61: 63 | F61: 44 | G61: 43 | H61: 55 | I61: 64 | J61: 57 | K61: 60 | L61: 40 | M61: 426 | N61: 40 | O61: 2411 | P61: 2877
A62: 60 | B62: 56 | C62: 50 | D62: BRIAN BROWN (PALATINE,IL) | E62: 53 | F62: 58 | G62: 30 | H62: 55 | I62: 63 | J62: 59 | K62: 62 | L62: 44 | M62: 424 | N62: 40 | O62: 2412 | P62: 2876
A63: 60 | B63: 69 | C63: 36 | D63: BILLPOLLACK (BOCA RATON,FL) | E63: 61 | F63: 50 | G63: 34 | H63: 59 | I63: 60 | J63: 64 | K63: 62 | L63: 43 | M63: 433 | N63: 50 | O63: 2393 | P63: 2876
A64: 62 | B64: 50 | C64: 62 | D64: ERICH ADAMS 1 (WINTER PARK,FL) | E64: 55 | F64: 61 | G64: 35 | H64: 53 | I64: 64 | J64: 58 | K64: 60 | L64: 32 | M64: 418 | N64: 40 | O64: 2416 | P64: 2874
A65: 63 | B65: 75 | C65: 73 | D65: SCHEUERMAN1 (OAK PARK,IL) | E65: 63 | F65: 44 | G65: 33 | H65: 61 | I65: 62 | J65: 60 | K65: 64 | L65: 47 | M65: 434 | N65: 50 | O65: 2388 | P65: 2872
A66: 63 | B66: 92 | C66: 71 | D66: TAPCITY (BURBANK,CA) | E66: 60 | F66: 61 | G66: 39 | H66: 53 | I66: 64 | J66: 58 | K66: 62 | L66: 49 | M66: =(SUM(E66:L66)) -> 446 | N66: =COUNTIF(E66:L66,">56")*10 -> 50 | O66: 2376 | P66: =M66+N66+O66 -> 2872
A67: 65 | B67: 59 | C67: 53 | D67: CATEY COHEN 2 (ELMHURST,IL) | E67: 61 | F67: 62 | G67: 26 | H67: 51 | I67: 63 | J67: 54 | K67: 48 | L67: 58 | M67: 423 | N67: 40 | O67: 2408 | P67: 2871
A68: 65 | B68: 60 | C68: 101 | D68: SARKIS SHIRINIAN (RIVER VALE,NJ) | E68: 57 | F68: 53 | G68: 44 | H68: 55 | I68: 64 | J68: 56 | K68: 61 | L68: 45 | M68: 435 | N68: 30 | O68: 2406 | P68: 2871
A69: 65 | B69: 68 | C69: 62 | D69: ORANGE&BLUE NEEDED THE $ (CHICAGO,IL) | E69: 63 | F69: 60 | G69: 24 | H69: 55 | I69: 64 | J69: 57 | K69: 62 | L69: 42 | M69: 427 | N69: 50 | O69: 2394 | P69: 2871
A70: 65 | B70: 83 | C70: 109 | D70: DAN SHIVE 2 (WINFIELD,IL) | E70: 60 | F70: 64 | G70: 38 | H70: 49 | I70: 63 | J70: 57 | K70: 62 | L70: 47 | M70: 440 | N70: 50 | O70: 2381 | P70: 2871
D71: AVERAGE | E71: 61 | F71: 55 | G71: 34 | H71: 54 | I71: 62 | J71: 57 | K71: 61 | L71: 42 | M71: 426 | N71: 40 | O71: 2400 | P71: 2866
A72: 69 | B72: 79 | C72: 100 | D72: JOE ENZYME (SAUNDERSTOWN,RI) | E72: 58 | F72: 55 | G72: 25 | H72: 64 | I72: 60 | J72: 63 | K72: 62 | L72: 44 | M72: 431 | N72: 50 | O72: 2384 | P72: 2865
A73: 70 | B73: 63 | C73: 36 | D73: LEE PATON (JUPITER,FL) | E73: 62 | F73: 53 | G73: 34 | H73: 44 | I73: 63 | J73: 57 | K73: 61 | L73: 42 | M73: 416 | N73: 40 | O73: 2404 | P73: 2860
A74: 70 | B74: 66 | C74: 96 | D74: SUE MCK (MISHAWAKA,IN) | E74: 63 | F74: 56 | G74: 27 | H74: 58 | I74: 64 | J74: 60 | K74: 62 | L74: 25 | M74: 415 | N74: 50 | O74: 2395 | P74: 2860
A75: 72 | B75: 66 | C75: 55 | D75: SEAN BURKE (SEVERNA PARK,MD) | E75: 60 | F75: 53 | G75: 39 | H75: 61 | I75: 64 | J75: 55 | K75: 62 | L75: 29 | M75: 423 | N75: 40 | O75: 2395 | P75: 2858
A76: 72 | B76: 97 | C76: 85 | D76: CHERI BJERKAN (ELMHURST,IL) | E76: 63 | F76: 55 | G76: 34 | H76: 62 | I76: 60 | J76: 61 | K76: 64 | L76: 41 | M76: 440 | N76: 50 | O76: 2368 | P76: 2858
A77: 74 | B77: 83 | C77: 102 | D77: ROS60007#1 (ELMHURST,IL) | E77: 64 | F77: 60 | G77: 32 | H77: 49 | I77: 61 | J77: 58 | K77: 63 | L77: 39 | M77: 426 | N77: 50 | O77: 2381 | P77: 2857
A78: 75 | B78: 69 | C78: 85 | D78: DAN LAMB (LINDENHURST,IL) | E78: 60 | F78: 61 | G78: 25 | H78: 56 | I78: 58 | J78: 55 | K78: 62 | L78: 46 | M78: 423 | N78: 40 | O78: 2393 | P78: 2856
A79: 75 | B79: 97 | C79: 111 | D79: PURDUE_PETE II (ARLINGTON HEIGHTS,IL) | E79: 63 | F79: 57 | G79: 32 | H79: 54 | I79: 60 | J79: 64 | K79: 62 | L79: 46 | M79: 438 | N79: 50 | O79: 2368 | P79: 2856
A80: 77 | B80: 77 | C80: 94 | D80: PAUL CASTINO (TEGA CAY,SC) | E80: 60 | F80: 56 | G80: 32 | H80: 55 | I80: 64 | J80: 58 | K80: 62 | L80: 41 | M80: 428 | N80: 40 | O80: 2387 | P80: 2855
A81: 78 | B81: 86 | C81: 89 | D81: CHRIS SEXTON (DANBURY,CT) | E81: 64 | F81: 48 | G81: 36 | H81: 52 | I81: 63 | J81: 61 | K81: 60 | L81: 51 | M81: 435 | N81: 40 | O81: 2379 | P81: 2854
A82: 79 | B82: 96 | C82: 106 | D82: MATT STEHOUWER 1 (SPRING LAKE,MI) | E82: 63 | F82: 57 | G82: 34 | H82: 55 | I82: 62 | J82: 58 | K82: 64 | L82: 40 | M82: 433 | N82: 50 | O82: 2369 | P82: 2852
A83: 80 | B83: 55 | C83: 70 | D83: K ADAMS 2 (SPRING LAKE,MI) | E83: 56 | F83: 52 | G83: 43 | H83: 54 | I83: 64 | J83: 59 | K83: 55 | L83: 34 | M83: 417 | N83: 20 | O83: 2413 | P83: 2850
A84: 80 | B84: 82 | C84: 58 | D84: MIKE JACOBUS (NEW ALBANY,OH) | E84: 60 | F84: 63 | G84: 42 | H84: 53 | I84: 62 | J84: 56 | K84: 64 | L84: 28 | M84: 428 | N84: 40 | O84: 2382 | P84: 2850
A85: 82 | B85: 90 | C85: 73 | D85: JERRY VANDERMOLEN (ELMHURST,IL) | E85: 62 | F85: 58 | G85: 34 | H85: 53 | I85: 63 | J85: 60 | K85: 57 | L85: 33 | M85: 420 | N85: 50 | O85: 2377 | P85: 2847
A86: 82 | B86: 100 | C86: 111 | D86: PURDUE_PETE (ARLINGTON HEIGHTS,IL) | E86: 62 | F86: 57 | G86: 32 | H86: 54 | I86: 64 | J86: 60 | K86: 59 | L86: 46 | M86: 434 | N86: 50 | O86: 2363 | P86: 2847
A87: 84 | B87: 58 | C87: 38 | D87: DAN KELLY (FRANKFORT,IL) | E87: 64 | F87: 53 | G87: 23 | H87: 54 | I87: 63 | J87: 56 | K87: 58 | L87: 36 | M87: 407 | N87: 30 | O87: 2409 | P87: 2846
A88: 84 | B88: 93 | C88: 103 | D88: MICHAEL RUSSO II (BELMONT,MI) | E88: 64 | F88: 55 | G88: 32 | H88: 54 | I88: 59 | J88: 61 | K88: 63 | L88: 43 | M88: 431 | N88: 40 | O88: 2375 | P88: 2846
A89: 86 | B89: 75 | C89: 85 | D89: DAVID INGLES 1 (GREENVILLE,MI) | E89: 63 | F89: 48 | G89: 22 | H89: 54 | I89: 64 | J89: 58 | K89: 59 | L89: 49 | M89: 417 | N89: 40 | O89: 2388 | P89: 2845
A90: 86 | B90: 101 | C90: 106 | D90: ASH (PORTLAND,OR) | E90: 63 | F90: 57 | G90: 36 | H90: 44 | I90: 64 | J90: 58 | K90: 59 | L90: 53 | M90: 434 | N90: 50 | O90: 2361 | P90: 2845
A91: 88 | B91: 104 | C91: 96 | D91: HARRY JAFFE 2 (CHANDLER,AZ) | E91: 63 | F91: 48 | G91: 33 | H91: 61 | I91: 64 | J91: 58 | K91: 62 | L91: 47 | M91: 436 | N91: 50 | O91: 2354 | P91: 2840
A92: 89 | B92: 90 | C92: 105 | D92: ROS60007#2 (ROSELLE,IL) | E92: 62 | F92: 60 | G92: 31 | H92: 41 | I92: 58 | J92: 61 | K92: 59 | L92: 40 | M92: 412 | N92: 50 | O92: 2377 | P92: 2839
A93: 90 | B93: 73 | C93: 66 | D93: KIDWC (ARLINGTON HEIGHTS,IL) | E93: 64 | F93: 48 | G93: 35 | H93: 50 | I93: 56 | J93: 59 | K93: 63 | L93: 44 | M93: 419 | N93: 30 | O93: 2389 | P93: 2838
A94: 90 | B94: 78 | C94: 76 | D94: LEWIS COLLIER REALE (LEXINGTON PARK,MD) | E94: 62 | F94: 59 | G94: 29 | H94: 47 | I94: 61 | J94: 55 | K94: 60 | L94: 40 | M94: 413 | N94: 40 | O94: 2385 | P94: 2838
A95: 90 | B95: 85 | C95: 96 | D95: MATT PALUMBO (WEST DUNDEE,IL) | E95: 61 | F95: 55 | G95: 22 | H95: 53 | I95: 64 | J95: 58 | K95: 60 | L95: 45 | M95: 418 | N95: 40 | O95: 2380 | P95: 2838
A96: 93 | B96: 104 | C96: 115 | D96: DANSHIVE 1 (WINFIELD,IL) | E96: 59 | F96: 63 | G96: 38 | H96: 43 | I96: 64 | J96: 57 | K96: 60 | L96: 45 | M96: 429 | N96: 50 | O96: 2354 | P96: 2833
A97: 94 | B97: 86 | C97: 76 | D97: PAUL ASTORINO (MOUNT PROSPECT,IL) | E97: 63 | F97: 59 | G97: 24 | H97: 55 | I97: 62 | J97: 54 | K97: 64 | L97: 31 | M97: 412 | N97: 40 | O97: 2379 | P97: 2831
A98: 95 | B98: 94 | C98: 82 | D98: CHRIS GRANDE1 (IN - MISHAWAKA,IN) | E98: 64 | F98: 53 | G98: 24 | H98: 56 | I98: 63 | J98: 59 | K98: 62 | L98: 38 | M98: =(SUM(E98:L98)) -> 419 | N98: =COUNTIF(E98:L98,">56")*10 -> 40 | O98: 2371 | P98: =M98+N98+O98 -> 2830
A99: 96 | B99: 50 | C99: 19 | D99: YAHTZEE 3 (ALLEGAN,MI) | E99: 55 | F99: 60 | G99: 28 | H99: 41 | I99: 64 | J99: 51 | K99: 56 | L99: 37 | M99: 392 | N99: 20 | O99: 2416 | P99: 2828
A100: 97 | B100: 102 | C100: 116 | D100: MIKE JASPERSEN (LONG BEACH,CA) | E100: 64 | F100: 57 | G100: 28 | H100: 46 | I100: 54 | J100: 62 | K100: 63 | L100: 55 | M100: 429 | N100: 40 | O100: 2358 | P100: 2827
A101: 98 | B101: 73 | C101: 79 | D101: DEVIN WARNKEN (CINCINNATI,OH) | E101: 56 | F101: 64 | G101: 39 | H101: 45 | I101: 55 | J101: 57 | K101: 62 | L101: 27 | M101: 405 | N101: 30 | O101: 2389 | P101: 2824
A102: 99 | B102: 79 | C102: 38 | D102: HARMON II (CHICAGO,IL) | E102: 61 | F102: 54 | G102: 28 | H102: 55 | I102: 62 | J102: 51 | K102: 63 | L102: 34 | M102: 408 | N102: 30 | O102: 2384 | P102: 2822
A103: 100 | B103: 89 | C103: 84 | D103: RYAN ROZYCKI (MYRTLE BEACH,SC) | E103: 55 | F103: 61 | G103: 30 | H103: 52 | I103: 56 | J103: 64 | K103: 57 | L103: 38 | M103: 413 | N103: 30 | O103: 2378 | P103: 2821
A104: 100 | B104: 106 | C104: 110 | D104: JOE JOO 5 KV (JENISON,MI) | E104: 64 | F104: 56 | G104: 40 | H104: 53 | I104: 60 | J104: 61 | K104: 63 | L104: 35 | M104: 432 | N104: 40 | O104: 2349 | P104: 2821
A105: 102 | B105: 95 | C105: 89 | D105: EHOOTER (LAKE STEVENS,WA) | E105: 62 | F105: 56 | G105: 25 | H105: 45 | I105: 64 | J105: 59 | K105: 60 | L105: 33 | M105: 404 | N105: 40 | O105: 2370 | P105: 2814
A106: 102 | B106: 103 | C106: 89 | D106: JEFF SEREMAK #2 (VILLA PARK,IL) | E106: 60 | F106: 61 | G106: 25 | H106: 48 | I106: 64 | J106: 58 | K106: 62 | L106: 31 | M106: 409 | N106: 50 | O106: 2355 | P106: 2814
A107: 104 | B107: 86 | C107: 106 | D107: ED LORGEREE II (BUFFALO GROVE,IL) | E107: 56 | F107: 51 | G107: 23 | H107: 55 | I107: 63 | J107: 58 | K107: 60 | L107: 37 | M107: 403 | N107: 30 | O107: 2379 | P107: 2812
A108: 104 | B108: 99 | C108: 56 | D108: TERRY REDDINGTON (RIDGEFIELD,CT) | E108: 64 | F108: 47 | G108: 40 | H108: 38 | I108: 62 | J108: 59 | K108: 60 | L108: 35 | M108: 405 | N108: 40 | O108: 2367 | P108: 2812
A109: 106 | B109: 107 | C109: 69 | D109: JOEJOO1 (JENISON,MI) | E109: 63 | F109: 58 | G109: 24 | H109: 55 | I109: 61 | J109: 60 | K109: 64 | L109: 33 | M109: 418 | N109: 50 | O109: 2342 | P109: 2810
A110: 107 | B110: 122 | C110: 123 | D110: JIM (ELMHURST,IL) | E110: 62 | F110: 60 | G110: 40 | H110: 55 | I110: 64 | J110: 57 | K110: 63 | L110: 42 | M110: 443 | N110: 50 | O110: 2310 | P110: 2803
A111: 108 | B111: 111 | C111: 114 | D111: GARY PIETRZAK III (REDONDO BEACH,CA) | E111: 63 | F111: 48 | G111: 35 | H111: 61 | I111: 64 | J111: 58 | K111: 62 | L111: 29 | M111: 420 | N111: 50 | O111: 2332 | P111: 2802
A112: 109 | B112: 110 | C112: 119 | D112: JOEJOO2 (JENISON,MI) | E112: 64 | F112: 49 | G112: 31 | H112: 59 | I112: 58 | J112: 63 | K112: 57 | L112: 37 | M112: 418 | N112: 50 | O112: 2333 | P112: 2801
A113: 109 | B113: 113 | C113: 117 | D113: MICHAEL CIESLIK (CHICAGO,IL) | E113: 63 | F113: 32 | G113: 38 | H113: 57 | I113: 64 | J113: 60 | K113: 62 | L113: 46 | M113: 422 | N113: 50 | O113: 2329 | P113: 2801
A114: 111 | B114: 115 | C114: 82 | D114: DOUG SCOTT (GREEN LAKE,WI) | E114: 64 | F114: 45 | G114: 33 | H114: 61 | I114: 63 | J114: 59 | K114: 62 | L114: 39 | M114: 426 | N114: 50 | O114: 2323 | P114: 2799
A115: 112 | B115: 79 | C115: 78 | D115: DAVID INGLES 3 (GREENVILLE,MI) | E115: 56 | F115: 48 | G115: 23 | H115: 52 | I115: 55 | J115: 59 | K115: 60 | L115: 39 | M115: 392 | N115: 20 | O115: 2384 | P115: 2796
A116: 113 | B116: 121 | C116: 126 | D116: JAMES THOMAS 2 (HERNANDO,FL) | E116: 63 | F116: 57 | G116: 30 | H116: 54 | I116: 59 | J116: 64 | K116: 61 | L116: 44 | M116: 432 | N116: 50 | O116: 2312 | P116: 2794
A117: 114 | B117: 116 | C117: 118 | D117: CHRIS GRANDE II (MISHAWAKA,IN) | E117: 56 | F117: 46 | G117: 45 | H117: 61 | I117: 64 | J117: 58 | K117: 62 | L117: 40 | M117: 432 | N117: 40 | O117: 2320 | P117: 2792
A118: 115 | B118: 119 | C118: 123 | D118: RICH LANDER (DOWNERS GROVE,IL) | E118: 55 | F118: 62 | G118: 24 | H118: 56 | I118: 64 | J118: 58 | K118: 61 | L118: 51 | M118: 431 | N118: 40 | O118: 2317 | P118: 2788
A119: 116 | B119: 114 | C119: 89 | D119: BRADYSACK1 (GRAND RAPIDS,MI) | E119: 62 | F119: 48 | G119: 35 | H119: 56 | I119: 63 | J119: 59 | K119: 64 | L119: 30 | M119: 417 | N119: 40 | O119: 2328 | P119: 2785
A120: 117 | B120: 111 | C120: 103 | D120: DAN KELLY#2 (FRANKFORT,IL) | E120: 60 | F120: 42 | G120: 35 | H120: 61 | I120: 62 | J120: 56 | K120: 59 | L120: 29 | M120: 404 | N120: 40 | O120: 2332 | P120: 2776
A121: 118 | B121: 116 | C121: 120 | D121: JEFF DUCKWORTH (SUGAR GROVE,IL) | E121: 63 | F121: 54 | G121: 19 | H121: 61 | I121: 62 | J121: 57 | K121: 64 | L121: 20 | M121: 400 | N121: 50 | O121: 2320 | P121: 2770
A122: 119 | B122: 109 | C122: 111 | D122: KRESKIN (ST. LOUIS,MO) | E122: 56 | F122: 55 | G122: 28 | H122: 54 | I122: 64 | J122: 52 | K122: 62 | L122: 38 | M122: 409 | N122: 20 | O122: 2337 | P122: 2766
A123: 120 | B123: 120 | C123: 121 | D123: JEFF GOLDMAN (NORWALK,CT) | E123: 58 | F123: 55 | G123: 40 | H123: 53 | I123: 64 | J123: 56 | K123: 59 | L123: 36 | M123: 421 | N123: 30 | O123: 2314 | P123: 2765
A124: 121 | B124: 125 | C124: 127 | D124: JAK (BARRINGTON,IL) | E124: 63 | F124: 54 | G124: 29 | H124: 56 | I124: 59 | J124: 62 | K124: 60 | L124: 42 | M124: 425 | N124: 40 | O124: 2297 | P124: 2762
A125: 122 | B125: 118 | C125: 89 | D125: HARMON I (CHICAGO,IL) | E125: 57 | F125: 64 | G125: 24 | H125: 48 | I125: 63 | J125: 46 | K125: 62 | L125: 36 | M125: 400 | N125: 40 | O125: 2318 | P125: 2758
A126: 123 | B126: 108 | C126: 88 | D126: JOE JOO 4 JW (JENISON,MI) | E126: 63 | F126: 41 | G126: 33 | H126: 52 | I126: 59 | J126: 49 | K126: 64 | L126: 26 | M126: 387 | N126: 30 | O126: 2339 | P126: 2756
A127: 124 | B127: 127 | C127: 125 | D127: SECOND ENTRY (CHICAGO,IL) | E127: 64 | F127: 58 | G127: 24 | H127: 61 | I127: 62 | J127: 55 | K127: 59 | L127: 27 | M127: 410 | N127: 50 | O127: 2286 | P127: 2746
A128: 125 | B128: 124 | C128: 122 | D128: GARY PIETRZAK II (REDONDO BEACH,CA) | E128: 62 | F128: 48 | G128: 27 | H128: 52 | I128: 64 | J128: 58 | K128: 60 | L128: 29 | M128: 400 | N128: 40 | O128: 2299 | P128: 2739
A129: 126 | B129: 123 | C129: 96 | D129: LEWIS COLLIER ACC (LEXINGTON PARK,MD) | E129: 62 | F129: 56 | G129: 29 | H129: 47 | I129: 61 | J129: 42 | K129: 60 | L129: 40 | M129: 397 | N129: 30 | O129: 2308 | P129: 2735
A130: 127 | B130: 125 | C130: 71 | D130: TERRY REDDINGTON 2 (RIDGEFIELD,CT) | E130: 63 | F130: 49 | G130: 23 | H130: 53 | I130: 64 | J130: 34 | K130: 61 | L130: 38 | M130: =(SUM(E130:L130)) -> 385 | N130: 30 | O130: 2297 | P130: =M130+N130+O130 -> 2712
A131: 128 | B131: 129 | C131: 128 | D131: LARRY ROTHENBERG (GLENDALE,WI) | E131: 63 | F131: 42 | G131: 22 | H131: 62 | I131: 64 | J131: 59 | K131: 58 | L131: 24 | M131: =(SUM(E131:L131)) -> 394 | N131: 50 | O131: 2179 | P131: =M131+N131+O131 -> 2623
A132: 129 | B132: 128 | C132: 129 | D132: ART SCHLICHTER (BUFFALO GROVE,IL) | E132: 55 | F132: 63 | G132: 27 | H132: 51 | I132: 64 | J132: 41 | K132: 61 | L132: 21 | M132: =(SUM(E132:L132)) -> 383 | N132: 30 | O132: 2197 | P132: =M132+N132+O132 -> 2610

Sheet RD 2
A1: Position RD 2 | B1: Position RD 1 | C1: Name | D1: Duke | E1: St_Johns | F1: Michigan_State | G1: UCONN | H1: Iowa | I1: Nebraska | J1: Illinois | K1: Houston | L1: Arizona | M1: Arkansas | N1: Texas | O1: Purdue | P1: Michigan | Q1: Alabama | R1: Tennessee | S1: Iowa_State | T1: RD 2 Tally | U1: Bonus (6) | V1: RD 1 total | W1: RD 2 total
C2: AVERAGE | D2: 61 | E2: 50 | F2: 55 | G2: 55 | H2: 34 | I2: 45 | J2: 54 | K2: 60 | L2: 62 | M2: 50 | N2: 27 | O2: 57 | P2: 61 | Q2: 46 | R2: 42 | S2: 58 | T2: =(SUM(D2:S2)) -> 817 | U2: =COUNTIF(D2:S2,">48")*6 -> 66 | V2: 1517 | W2: =T2+U2+V2 -> 2400
A3: 1 | B3: 13 | C3: HOPELESS AT HOOPS AND BRIDGE (BRONX,NY) | D3: 64 | E3: 55 | F3: 54 | G3: 57 | H3: 39 | I3: 53 | J3: 56 | K3: 61 | L3: 62 | M3: 51 | N3: 49 | O3: 58 | P3: 63 | Q3: 52 | R3: 46 | S3: 59 | T3: 879 | U3: 84 | V3: 1552 | W3: 2515
A4: 2 | B4: 19 | C4: MATT HENSING (WAUKEE,IA) | D4: 63 | E4: 51 | F4: 57 | G4: 56 | H4: 39 | I4: 45 | J4: 55 | K4: 61 | L4: 64 | M4: 54 | N4: 49 | O4: 59 | P4: 62 | Q4: 53 | R4: 52 | S4: 60 | T4: 880 | U4: 84 | V4: 1546 | W4: 2510
A5: 3 | B5: 4 | C5: MARTY KELLY (NEW LENOX,IL) | D5: 60 | E5: 41 | F5: 63 | G5: 54 | H5: 43 | I5: 47 | J5: 58 | K5: 55 | L5: 64 | M5: 46 | N5: 49 | O5: 59 | P5: 62 | Q5: 50 | R5: 45 | S5: 57 | T5: 853 | U5: 66 | V5: 1575 | W5: 2494
A6: 4 | B6: 1 | C6: LKLK (SCHAUMBURG,IL) | D6: 61 | E6: 52 | F6: 60 | G6: 53 | H6: 42 | I6: 47 | J6: 49 | K6: 64 | L6: 59 | M6: 54 | N6: 22 | O6: 56 | P6: 63 | Q6: 50 | R6: 45 | S6: 55 | T6: 832 | U6: 72 | V6: 1588 | W6: 2492
A7: 5 | B7: 3 | C7: ROBY (SCHAUMBURG,IL) | D7: 64 | E7: 48 | F7: 55 | G7: 57 | H7: 40 | I7: 51 | J7: 56 | K7: 62 | L7: 60 | M7: 49 | N7: 22 | O7: 63 | P7: 61 | Q7: 52 | R7: 36 | S7: 59 | T7: 835 | U7: 72 | V7: 1578 | W7: 2485
A8: 6 | B8: 5 | C8: ALEXANDER PETER BERTHOUD (ROCKFORD,IL) | D8: 63 | E8: 48 | F8: 57 | G8: 53 | H8: 36 | I8: 51 | J8: 60 | K8: 56 | L8: 62 | M8: 54 | N8: 32 | O8: 58 | P8: 64 | Q8: 50 | R8: 45 | S8: 59 | T8: 848 | U8: 72 | V8: 1563 | W8: 2483
A9: 7 | B9: 2 | C9: WILLIAM FORCE TERHUNE (ROCKFORD,IL) | D9: 64 | E9: 48 | F9: 53 | G9: 57 | H9: 36 | I9: 47 | J9: 61 | K9: 56 | L9: 63 | M9: 54 | N9: 32 | O9: 58 | P9: 62 | Q9: 46 | R9: 45 | S9: 59 | T9: 841 | U9: 60 | V9: 1581 | W9: 2482
A10: 8 | B10: 18 | C10: JIM PIETRZAK (LA GRANGE,IL) | D10: 56 | E10: 58 | F10: 63 | G10: 54 | H10: 40 | I10: 44 | J10: 57 | K10: 55 | L10: 64 | M10: 48 | N10: 49 | O10: 59 | P10: 60 | Q10: 43 | R10: 51 | S10: 61 | T10: 862 | U10: 72 | V10: 1547 | W10: 2481
A11: 9 | B11: 15 | C11: JEFF SEREMAK (VILLA PARK,IL) | D11: 64 | E11: 53 | F11: 58 | G11: 55 | H11: 37 | I11: 46 | J11: 54 | K11: 61 | L11: 62 | M11: 52 | N11: 33 | O11: 56 | P11: 63 | Q11: 51 | R11: 49 | S11: 59 | T11: 853 | U11: 78 | V11: 1548 | W11: 2479
A12: 10 | B12: 15 | C12: JOHN KOWAL (MEDINA,OH) | D12: 63 | E12: 50 | F12: 57 | G12: 55 | H12: 38 | I12: 53 | J12: 56 | K12: 62 | L12: 64 | M12: 52 | N12: 28 | O12: 58 | P12: 61 | Q12: 49 | R12: 44 | S12: 59 | T12: 849 | U12: 78 | V12: 1548 | W12: 2475
A13: 11 | B13: 50 | C13: ED LORGEREE I (BUFFALO GROVE,IL) | D13: 58 | E13: 53 | F13: 63 | G13: 46 | H13: 38 | I13: 43 | J13: 57 | K13: 55 | L13: 64 | M13: 54 | N13: 47 | O13: 56 | P13: 62 | Q13: 59 | R13: 51 | S13: 60 | T13: 866 | U13: 72 | V13: 1529 | W13: 2467
A14: 12 | B14: 10 | C14: K ADAMS 1 (SPRING LAKE,MI) | D14: 64 | E14: 49 | F14: 57 | G14: 56 | H14: 36 | I14: 46 | J14: 55 | K14: 60 | L14: 63 | M14: 51 | N14: 23 | O14: 58 | P14: 62 | Q14: 50 | R14: 47 | S14: 59 | T14: 836 | U14: 72 | V14: 1558 | W14: 2466
A15: 13 | B15: 23 | C15: MARK COHEN (PALM COAST,FL) | D15: 60 | E15: 53 | F15: 61 | G15: 54 | H15: 35 | I15: 43 | J15: 56 | K15: 63 | L15: 62 | M15: 55 | N15: 21 | O15: 58 | P15: 64 | Q15: 49 | R15: 52 | S15: 57 | T15: 843 | U15: 78 | V15: 1543 | W15: 2464
A16: 14 | B16: 12 | C16: YAHTZEE 2 (ALLEGAN,MI) | D16: 63 | E16: 51 | F16: 50 | G16: 59 | H16: 28 | I16: 43 | J16: 52 | K16: 61 | L16: 62 | M16: 56 | N16: 37 | O16: 53 | P16: 64 | Q16: 57 | R16: 38 | S16: 60 | T16: 834 | U16: 72 | V16: 1555 | W16: 2461
A17: 15 | B17: 15 | C17: PHILIP SPENCER (ROCKFORD,IL) | D17: 63 | E17: 48 | F17: 53 | G17: 57 | H17: 36 | I17: 47 | J17: 56 | K17: 60 | L17: 64 | M17: 54 | N17: 32 | O17: 58 | P17: 62 | Q17: 50 | R17: 45 | S17: 59 | T17: 844 | U17: 66 | V17: 1548 | W17: 2458
A18: 16 | B18: 8 | C18: LKMY (SCHAUMBURG,IL) | D18: 63 | E18: 51 | F18: 52 | G18: 58 | H18: 37 | I18: 47 | J18: 53 | K18: 62 | L18: 64 | M18: 54 | N18: 20 | O18: 57 | P18: 60 | Q18: 56 | R18: 30 | S18: 61 | T18: 825 | U18: 72 | V18: 1559 | W18: 2456
A19: 16 | B19: 14 | C19: MATT OLSON (LITTLETON,CO) | D19: 63 | E19: 49 | F19: 57 | G19: 56 | H19: 37 | I19: 46 | J19: 55 | K19: 61 | L19: 62 | M19: 51 | N19: 27 | O19: 58 | P19: 60 | Q19: 48 | R19: 47 | S19: 64 | T19: 841 | U19: 66 | V19: 1549 | W19: 2456
A20: 16 | B20: 26 | C20: R. JAY BECKER 1 (DELRAY BEACH,FL) | D20: 64 | E20: 50 | F20: 56 | G20: 57 | H20: 38 | I20: 47 | J20: 54 | K20: 61 | L20: 63 | M20: 49 | N20: 26 | O20: 58 | P20: 62 | Q20: 52 | R20: 46 | S20: 59 | T20: 842 | U20: 72 | V20: 1542 | W20: 2456
A21: 16 | B21: 26 | C21: R. JAY BECKER 2 (DELRAY BEACH,FL) | D21: 63 | E21: 50 | F21: 56 | G21: 57 | H21: 38 | I21: 47 | J21: 54 | K21: 61 | L21: 64 | M21: 49 | N21: 26 | O21: 58 | P21: 62 | Q21: 52 | R21: 46 | S21: 59 | T21: 842 | U21: 72 | V21: 1542 | W21: 2456
A22: 20 | B22: 26 | C22: JANET BECKER (DELRAY BEACH,FL) | D22: 64 | E22: 50 | F22: 56 | G22: 57 | H22: 38 | I22: 47 | J22: 54 | K22: 60 | L22: 62 | M22: 49 | N22: 26 | O22: 58 | P22: 63 | Q22: 52 | R22: 46 | S22: 59 | T22: 841 | U22: 72 | V22: 1542 | W22: 2455
A23: 20 | B23: 26 | C23: R. JAY BECKER 3 (DELRAY BEACH,FL) | D23: 63 | E23: 50 | F23: 56 | G23: 57 | H23: 38 | I23: 47 | J23: 54 | K23: 60 | L23: 62 | M23: 49 | N23: 26 | O23: 58 | P23: 64 | Q23: 52 | R23: 46 | S23: 59 | T23: 841 | U23: 72 | V23: 1542 | W23: 2455
A24: 20 | B24: 26 | C24: R. JAY BECKER 4 (DELRAY BEACH,FL) | D24: 64 | E24: 50 | F24: 56 | G24: 57 | H24: 38 | I24: 47 | J24: 54 | K24: 60 | L24: 63 | M24: 49 | N24: 26 | O24: 58 | P24: 62 | Q24: 52 | R24: 46 | S24: 59 | T24: 841 | U24: 72 | V24: 1542 | W24: 2455
A25: 20 | B25: 26 | C25: R. JAY BECKER 5 (DELRAY BEACH,FL) | D25: 63 | E25: 50 | F25: 56 | G25: 57 | H25: 38 | I25: 47 | J25: 54 | K25: 60 | L25: 64 | M25: 49 | N25: 26 | O25: 58 | P25: 62 | Q25: 52 | R25: 46 | S25: 59 | T25: 841 | U25: 72 | V25: 1542 | W25: 2455
A26: 24 | B26: 5 | C26: PAUL PARKS II (NORTH LAS VEGAS,NV) | D26: 64 | E26: 53 | F26: 59 | G26: 50 | H26: 43 | I26: 48 | J26: 55 | K26: 62 | L26: 63 | M26: 45 | N26: 29 | O26: 57 | P26: 60 | Q26: 47 | R26: 40 | S26: 56 | T26: 831 | U26: 60 | V26: 1563 | W26: 2454
A27: 24 | B27: 8 | C27: ROZIPOLLACK II (BOCA RATON,FL) | D27: 63 | E27: 50 | F27: 53 | G27: 57 | H27: 40 | I27: 46 | J27: 56 | K27: 60 | L27: 62 | M27: 52 | N27: 17 | O27: 58 | P27: 64 | Q27: 48 | R27: 44 | S27: 59 | T27: 829 | U27: 66 | V27: 1559 | W27: 2454
A28: 26 | B28: 22 | C28: KSOTTO (OVERLAND PARK,KS) | D28: 64 | E28: 52 | F28: 56 | G28: 58 | H28: 34 | I28: 42 | J28: 54 | K28: 59 | L28: 63 | M28: 47 | N28: 50 | O28: 57 | P28: 60 | Q28: 39 | R28: 46 | S28: 61 | T28: 842 | U28: 66 | V28: 1545 | W28: 2453
A29: 27 | B29: 23 | C29: BRIAN GERKE (LEES SUMMIT,MO) | D29: 62 | E29: 49 | F29: 58 | G29: 55 | H29: 44 | I29: 29 | J29: 54 | K29: 63 | L29: 64 | M29: 52 | N29: 47 | O29: 50 | P29: 60 | Q29: 34 | R29: 53 | S29: 61 | T29: 835 | U29: 72 | V29: 1543 | W29: 2450
A30: 27 | B30: 38 | C30: JOSH JAGUST (OAK PARK,IL) | D30: 63 | E30: 51 | F30: 58 | G30: 54 | H30: 39 | I30: 43 | J30: 61 | K30: 56 | L30: 64 | M30: 53 | N30: 22 | O30: 59 | P30: 60 | Q30: 46 | R30: 49 | S30: 62 | T30: 840 | U30: 72 | V30: 1538 | W30: 2450
A31: 29 | B31: 54 | C31: KEN PIETRZAK (SAUNDERSTOWN,RI) | D31: 59 | E31: 52 | F31: 61 | G31: 55 | H31: 36 | I31: 47 | J31: 56 | K31: 63 | L31: 64 | M31: 48 | N31: 45 | O31: 58 | P31: 62 | Q31: 49 | R31: 44 | S31: 57 | T31: 856 | U31: 66 | V31: 1527 | W31: 2449
A32: 30 | B32: 23 | C32: ROZIPOLLACK I (BOCA RATON,FL) | D32: 64 | E32: 51 | F32: 55 | G32: 57 | H32: 39 | I32: 48 | J32: 56 | K32: 60 | L32: 62 | M32: 50 | N32: 16 | O32: 58 | P32: 63 | Q32: 49 | R32: 46 | S32: 59 | T32: 833 | U32: 72 | V32: 1543 | W32: 2448
A33: 30 | B33: 38 | C33: GARY PIETRZAK (REDONDO BEACH,CA) | D33: 62 | E33: 56 | F33: 55 | G33: 57 | H33: 35 | I33: 39 | J33: 52 | K33: 59 | L33: 64 | M33: 46 | N33: 44 | O33: 58 | P33: 60 | Q33: 49 | R33: 47 | S33: 61 | T33: 844 | U33: 66 | V33: 1538 | W33: 2448
A34: 32 | B34: 58 | C34: WIMPY (WOOD DALE,IL) | D34: 63 | E34: 51 | F34: 57 | G34: 56 | H34: 43 | I34: 53 | J34: 52 | K34: 62 | L34: 64 | M34: 55 | N34: 23 | O34: 58 | P34: 60 | Q34: 48 | R34: 47 | S34: 61 | T34: =(SUM(D34:S34)) -> 853 | U34: =COUNTIF(D34:S34,">48")*6 -> 72 | V34: 1522 | W34: =T34+U34+V34 -> 2447
A35: 33 | B35: 42 | C35: MICHELE HINNENDAE; (PRESQUE ISLE,WI) | D35: 63 | E35: 50 | F35: 58 | G35: 55 | H35: 35 | I35: 51 | J35: 59 | K35: 54 | L35: 64 | M35: 48 | N35: 40 | O35: 56 | P35: 60 | Q35: 44 | R35: 45 | S35: 61 | T35: 843 | U35: 66 | V35: 1536 | W35: 2445
A36: 34 | B36: 26 | C36: DAVID INGLES 2 (GREENVILLE,MI) | D36: 62 | E36: 51 | F36: 52 | G36: 59 | H36: 25 | I36: 53 | J36: 58 | K36: 55 | L36: 56 | M36: 48 | N36: 39 | O36: 61 | P36: 64 | Q36: 37 | R36: 49 | S36: 60 | T36: 829 | U36: 72 | V36: 1542 | W36: 2443
A37: 35 | B37: 19 | C37: HANK HEISE (OVERLAND PARK,KS) | D37: 63 | E37: 45 | F37: 58 | G37: 55 | H37: 37 | I37: 51 | J37: 56 | K37: 61 | L37: 64 | M37: 53 | N37: 25 | O37: 54 | P37: 62 | Q37: 31 | R37: 50 | S37: 59 | T37: 824 | U37: 72 | V37: 1546 | W37: 2442
A38: 36 | B38: 46 | C38: ERICH ADAMS 2 (WINTER PARK,FL) | D38: 63 | E38: 55 | F38: 57 | G38: 56 | H38: 35 | I38: 52 | J38: 53 | K38: 59 | L38: 62 | M38: 41 | N38: 31 | O38: 58 | P38: 64 | Q38: 51 | R38: 39 | S38: 60 | T38: 836 | U38: 72 | V38: 1533 | W38: 2441
A39: 37 | B39: 7 | C39: JAMES THOMAS 1 (HERNANDO,FL) | D39: 64 | E39: 19 | F39: 58 | G39: 53 | H39: 35 | I39: 50 | J39: 54 | K39: 60 | L39: 59 | M39: 55 | N39: 23 | O39: 62 | P39: 61 | Q39: 52 | R39: 44 | S39: 57 | T39: 806 | U39: 72 | V39: 1561 | W39: 2439
A40: 38 | B40: 43 | C40: NICK JASPERSEN (TORRANCE,CA) | D40: 64 | E40: 44 | F40: 54 | G40: 57 | H40: 33 | I40: 46 | J40: 56 | K40: 60 | L40: 63 | M40: 53 | N40: 41 | O40: 58 | P40: 59 | Q40: 38 | R40: 50 | S40: 62 | T40: 838 | U40: 66 | V40: 1534 | W40: 2438
A41: 39 | B41: 58 | C41: GERRY SEXTON (RIDGEFIELD,CT) | D41: 56 | E41: 58 | F41: 61 | G41: 55 | H41: 37 | I41: 38 | J41: 53 | K41: 63 | L41: 64 | M41: 49 | N41: 19 | O41: 59 | P41: 60 | Q41: 51 | R41: 52 | S41: 62 | T41: 837 | U41: 78 | V41: 1522 | W41: 2437
A42: 40 | B42: 10 | C42: DAN ATLAS (EVERGREEN,CO) | D42: 62 | E42: 48 | F42: 60 | G42: 55 | H42: 40 | I42: 32 | J42: 58 | K42: 54 | L42: 64 | M42: 51 | N42: 21 | O42: 56 | P42: 61 | Q42: 50 | R42: 45 | S42: 53 | T42: 810 | U42: 66 | V42: 1558 | W42: 2434
A43: 41 | B43: 33 | C43: MARY SULLIVAN (FORT MYERS,FL) | D43: 61 | E43: 47 | F43: 56 | G43: 55 | H43: 25 | I43: 52 | J43: 54 | K43: 60 | L43: 59 | M43: 53 | N43: 24 | O43: 64 | P43: 62 | Q43: 49 | R43: 42 | S43: 57 | T43: 820 | U43: 72 | V43: 1540 | W43: 2432
A44: 41 | B44: 47 | C44: RAYBIK01 (PT ST LUCIE,FL) | D44: 64 | E44: 45 | F44: 55 | G44: 58 | H44: 30 | I44: 50 | J44: 56 | K44: 59 | L44: 61 | M44: 51 | N44: 22 | O44: 60 | P44: 63 | Q44: 57 | R44: 43 | S44: 54 | T44: 828 | U44: 72 | V44: 1532 | W44: 2432
A45: 41 | B45: 48 | C45: JOEJOO3 (JENISON,MI) | D45: 58 | E45: 46 | F45: 56 | G45: 64 | H45: 38 | I45: 51 | J45: 54 | K45: 61 | L45: 63 | M45: 52 | N45: 24 | O45: 57 | P45: 60 | Q45: 48 | R45: 42 | S45: 62 | T45: 836 | U45: 66 | V45: 1530 | W45: 2432
A46: 44 | B46: 33 | C46: DAN KENNEY (LISLE,IL) | D46: 64 | E46: 49 | F46: 47 | G46: 58 | H46: 34 | I46: 45 | J46: 55 | K46: 59 | L46: 63 | M46: 54 | N46: 21 | O46: 57 | P46: 60 | Q46: 56 | R46: 42 | S46: 61 | T46: 825 | U46: 66 | V46: 1540 | W46: 2431
A47: 44 | B47: 48 | C47: JACK HINNENDAEL (PRESQUE ISLE,WI) | D47: 64 | E47: 49 | F47: 56 | G47: 57 | H47: 36 | I47: 45 | J47: 53 | K47: 60 | L47: 63 | M47: 50 | N47: 26 | O47: 55 | P47: 62 | Q47: 51 | R47: 43 | S47: 59 | T47: 829 | U47: 72 | V47: 1530 | W47: 2431
A48: 46 | B48: 62 | C48: CATEY COHEN 1 (ELMHURST,IL) | D48: 61 | E48: 47 | F48: 52 | G48: 62 | H48: 15 | I48: 49 | J48: 54 | K48: 63 | L48: 64 | M48: 50 | N48: 31 | O48: 58 | P48: 60 | Q48: 55 | R48: 51 | S48: 57 | T48: 829 | U48: 78 | V48: 1519 | W48: 2426
A49: 47 | B49: 43 | C49: MICHAEL RUSSO I (BELMONT,MI) | D49: 59 | E49: 46 | F49: 61 | G49: 55 | H49: 29 | I49: 50 | J49: 49 | K49: 63 | L49: 64 | M49: 43 | N49: 22 | O49: 57 | P49: 60 | Q49: 45 | R49: 56 | S49: 62 | T49: 821 | U49: 66 | V49: 1534 | W49: 2421
A50: 48 | B50: 33 | C50: CUBSBUDMAN (PLAINFIELD,IL) | D50: 55 | E50: 57 | F50: 53 | G50: 61 | H50: 37 | I50: 44 | J50: 56 | K50: 60 | L50: 64 | M50: 54 | N50: 12 | O50: 58 | P50: 62 | Q50: 49 | R50: 26 | S50: 59 | T50: 807 | U50: 72 | V50: 1540 | W50: 2419
A51: 48 | B51: 62 | C51: K ADAMS 3 (SPRING LAKE,MI) | D51: 56 | E51: 57 | F51: 52 | G51: 62 | H51: 43 | I51: 47 | J51: 63 | K51: 54 | L51: 64 | M51: 48 | N51: 24 | O51: 59 | P51: 61 | Q51: 55 | R51: 31 | S51: 58 | T51: 834 | U51: 66 | V51: 1519 | W51: 2419
A52: 50 | B52: 19 | C52: YAHTZEE 3 (ALLEGAN,MI) | D52: 55 | E52: 52 | F52: 50 | G52: 60 | H52: 28 | I52: 42 | J52: 41 | K52: 59 | L52: 64 | M52: 54 | N52: 36 | O52: 51 | P52: 56 | Q52: 62 | R52: 37 | S52: 57 | T52: 804 | U52: 66 | V52: 1546 | W52: 2416
A53: 50 | B53: 50 | C53: TIM REDDINGTON (NORWALK,CT) | D53: 63 | E53: 49 | F53: 58 | G53: 55 | H53: 32 | I53: 46 | J53: 56 | K53: 62 | L53: 64 | M53: 43 | N53: 21 | O53: 59 | P53: 60 | Q53: 53 | R53: 39 | S53: 61 | T53: 821 | U53: 66 | V53: 1529 | W53: 2416
A54: 50 | B54: 62 | C54: ERICH ADAMS 1 (WINTER PARK,FL) | D54: 55 | E54: 57 | F54: 56 | G54: 61 | H54: 35 | I54: 48 | J54: 53 | K54: 63 | L54: 64 | M54: 50 | N54: 31 | O54: 58 | P54: 60 | Q54: 46 | R54: 32 | S54: 62 | T54: 831 | U54: 66 | V54: 1519 | W54: 2416
A55: 53 | B55: 43 | C55: AL KLEEN (DAVIS,IL) | D55: 63 | E55: 49 | F55: 51 | G55: 59 | H55: 28 | I55: 40 | J55: 55 | K55: 62 | L55: 64 | M55: 53 | N55: 20 | O55: 56 | P55: 60 | Q55: 47 | R55: 46 | S55: 61 | T55: 814 | U55: 66 | V55: 1534 | W55: 2414
A56: 53 | B56: 66 | C56: AL KLEEN11 (DAVIS,IL) | D56: 63 | E56: 51 | F56: 55 | G56: 58 | H56: 38 | I56: 39 | J56: 61 | K56: 56 | L56: 59 | M56: 54 | N56: 24 | O56: 62 | P56: 64 | Q56: 46 | R56: 43 | S56: 57 | T56: 830 | U56: 66 | V56: 1518 | W56: 2414
A57: 55 | B57: 70 | C57: K ADAMS 2 (SPRING LAKE,MI) | D57: 56 | E57: 57 | F57: 62 | G57: 52 | H57: 43 | I57: 47 | J57: 54 | K57: 63 | L57: 64 | M57: 48 | N57: 24 | O57: 59 | P57: 55 | Q57: 61 | R57: 34 | S57: 53 | T57: 832 | U57: 66 | V57: 1515 | W57: 2413
A58: 56 | B58: 50 | C58: BRIAN BROWN (PALATINE,IL) | D58: 53 | E58: 61 | F58: 54 | G58: 58 | H58: 30 | I58: 47 | J58: 55 | K58: 60 | L58: 63 | M58: 56 | N58: 18 | O58: 59 | P58: 62 | Q58: 40 | R58: 44 | S58: 57 | T58: 817 | U58: 66 | V58: 1529 | W58: 2412
A59: 57 | B59: 81 | C59: PAUL PARKS I (NORTH LAS VEGAS,NV) | D59: 63 | E59: 53 | F59: 59 | G59: 44 | H59: 43 | I59: 48 | J59: 55 | K59: 62 | L59: 64 | M59: 52 | N59: 35 | O59: 57 | P59: 60 | Q59: 47 | R59: 40 | S59: 61 | T59: 843 | U59: 60 | V59: 1508 | W59: 2411
A60: 58 | B60: 38 | C60: DAN KELLY (FRANKFORT,IL) | D60: 64 | E60: 55 | F60: 60 | G60: 53 | H60: 23 | I60: 41 | J60: 54 | K60: 62 | L60: 63 | M60: 51 | N60: 20 | O60: 56 | P60: 58 | Q60: 48 | R60: 36 | S60: 61 | T60: 805 | U60: 66 | V60: 1538 | W60: 2409
A61: 59 | B61: 53 | C61: CATEY COHEN 2 (ELMHURST,IL) | D61: 61 | E61: 50 | F61: 23 | G61: 62 | H61: 26 | I61: 42 | J61: 51 | K61: 64 | L61: 63 | M61: 53 | N61: 43 | O61: 54 | P61: 48 | Q61: 56 | R61: 58 | S61: 60 | T61: 814 | U61: 66 | V61: 1528 | W61: 2408
A62: 60 | B62: 101 | C62: SARKIS SHIRINIAN (RIVER VALE,NJ) | D62: 57 | E62: 59 | F62: 62 | G62: 53 | H62: 44 | I62: 49 | J62: 55 | K62: 63 | L62: 64 | M62: 50 | N62: 31 | O62: 56 | P62: 61 | Q62: 34 | R62: 45 | S62: 60 | T62: 843 | U62: 72 | V62: 1491 | W62: 2406
A63: 61 | B63: 57 | C63: HARRY JAFFE 1 (CHANDLER,AZ) | D63: 63 | E63: 44 | F63: 59 | G63: 48 | H63: 33 | I63: 46 | J63: 56 | K63: 61 | L63: 62 | M63: 43 | N63: 22 | O63: 58 | P63: 64 | Q63: 49 | R63: 54 | S63: 60 | T63: 822 | U63: 60 | V63: 1523 | W63: 2405
A64: 61 | B64: 94 | C64: EEYORE (PRESQUE ISLE,WI) | D64: 64 | E64: 48 | F64: 56 | G64: 57 | H64: 36 | I64: 45 | J64: 53 | K64: 60 | L64: 63 | M64: 47 | N64: 26 | O64: 58 | P64: 54 | Q64: 59 | R64: 51 | S64: 62 | T64: 839 | U64: 66 | V64: 1500 | W64: 2405
A65: 63 | B65: 36 | C65: LEE PATON (JUPITER,FL) | D65: 62 | E65: 47 | F65: 58 | G65: 53 | H65: 34 | I65: 43 | J65: 44 | K65: 64 | L65: 63 | M65: 56 | N65: 27 | O65: 57 | P65: 61 | Q65: 41 | R65: 42 | S65: 59 | T65: 811 | U65: 54 | V65: 1539 | W65: 2404
A66: 64 | B66: 73 | C66: ADRIENNE COHEN (ELMHURST,IL) | D66: 62 | E66: 47 | F66: 59 | G66: 56 | H66: 55 | I66: 45 | J66: 48 | K66: 63 | L66: 64 | M66: 46 | N66: 23 | O66: 57 | P66: 61 | Q66: 49 | R66: 35 | S66: 60 | T66: =(SUM(D66:S66)) -> 830 | U66: =COUNTIF(D66:S66,">48")*6 -> 60 | V66: 1513 | W66: =T66+U66+V66 -> 2403
A67: 65 | B67: 61 | C67: BRADY SACK II (GRAND RAPIDS,MI) | D67: 63 | E67: 46 | F67: 58 | G67: 52 | H67: 36 | I67: 45 | J67: 57 | K67: 61 | L67: 64 | M67: 51 | N67: 22 | O67: 59 | P67: 62 | Q67: 44 | R67: 41 | S67: 60 | T67: 821 | U67: 60 | V67: 1520 | W67: 2401
C68: AVERAGE | D68: 61 | E68: 50 | F68: 55 | G68: 55 | H68: 34 | I68: 45 | J68: 54 | K68: 60 | L68: 62 | M68: 50 | N68: 27 | O68: 57 | P68: 61 | Q68: 46 | R68: 42 | S68: 58 | T68: 817 | U68: 66 | V68: 1517 | W68: 2400
A69: 66 | B69: 55 | C69: SEAN BURKE (SEVERNA PARK,MD) | D69: 60 | E69: 47 | F69: 63 | G69: 53 | H69: 39 | I69: 46 | J69: 61 | K69: 56 | L69: 64 | M69: 44 | N69: 22 | O69: 55 | P69: 62 | Q69: 49 | R69: 29 | S69: 59 | T69: 809 | U69: 60 | V69: 1526 | W69: 2395
A70: 66 | B70: 96 | C70: SUE MCK (MISHAWAKA,IN) | D70: 63 | E70: 51 | F70: 57 | G70: 56 | H70: 27 | I70: 49 | J70: 58 | K70: 55 | L70: 64 | M70: 50 | N70: 37 | O70: 60 | P70: 62 | Q70: 52 | R70: 25 | S70: 53 | T70: 819 | U70: 78 | V70: 1498 | W70: 2395
A71: 68 | B71: 62 | C71: ORANGE&BLUE NEEDED THE $ (CHICAGO,IL) | D71: 63 | E71: 49 | F71: 53 | G71: 60 | H71: 24 | I71: 46 | J71: 55 | K71: 61 | L71: 64 | M71: 47 | N71: 29 | O71: 57 | P71: 62 | Q71: 45 | R71: 42 | S71: 58 | T71: 815 | U71: 60 | V71: 1519 | W71: 2394
A72: 69 | B72: 36 | C72: BILLPOLLACK (BOCA RATON,FL) | D72: 61 | E72: 38 | F72: 45 | G72: 50 | H72: 34 | I72: 40 | J72: 59 | K72: 52 | L72: 60 | M72: 55 | N72: 19 | O72: 64 | P72: 62 | Q72: 54 | R72: 43 | S72: 58 | T72: 794 | U72: 60 | V72: 1539 | W72: 2393
A73: 69 | B73: 85 | C73: DAN LAMB (LINDENHURST,IL) | D73: 60 | E73: 52 | F73: 53 | G73: 61 | H73: 25 | I73: 48 | J73: 56 | K73: 64 | L73: 58 | M73: 63 | N73: 18 | O73: 55 | P73: 62 | Q73: 43 | R73: 46 | S73: 59 | T73: 823 | U73: 66 | V73: 1504 | W73: 2393
A74: 71 | B74: 79 | C74: SCHEUERMAN2 (OAK PARK,IL) | D74: 63 | E74: 54 | F74: 57 | G74: 52 | H74: 31 | I74: 42 | J74: 60 | K74: 56 | L74: 62 | M74: 45 | N74: 27 | O74: 59 | P74: 64 | Q74: 46 | R74: 47 | S74: 58 | T74: 823 | U74: 60 | V74: 1509 | W74: 2392
A75: 72 | B75: 68 | C75: MATT STEHOUWER 2 (SPRING LAKE,MI) | D75: 63 | E75: 56 | F75: 49 | G75: 58 | H75: 40 | I75: 33 | J75: 54 | K75: 62 | L75: 64 | M75: 51 | N75: 13 | O75: 57 | P75: 61 | Q75: 41 | R75: 46 | S75: 60 | T75: 808 | U75: 66 | V75: 1517 | W75: 2391
A76: 73 | B76: 66 | C76: KIDWC (ARLINGTON HEIGHTS,IL) | D76: 64 | E76: 52 | F76: 55 | G76: 48 | H76: 35 | I76: 51 | J76: 50 | K76: 58 | L76: 56 | M76: 43 | N76: 26 | O76: 59 | P76: 63 | Q76: 47 | R76: 44 | S76: 60 | T76: 811 | U76: 60 | V76: 1518 | W76: 2389
A77: 73 | B77: 79 | C77: DEVIN WARNKEN (CINCINNATI,OH) | D77: 56 | E77: 60 | F77: 54 | G77: 64 | H77: 39 | I77: 32 | J77: 45 | K77: 61 | L77: 55 | M77: 63 | N77: 35 | O77: 57 | P77: 62 | Q77: 51 | R77: 27 | S77: 53 | T77: 814 | U77: 66 | V77: 1509 | W77: 2389
A78: 75 | B78: 73 | C78: SCHEUERMAN1 (OAK PARK,IL) | D78: 63 | E78: 50 | F78: 57 | G78: 44 | H78: 33 | I78: 42 | J78: 61 | K78: 56 | L78: 62 | M78: 46 | N78: 30 | O78: 60 | P78: 64 | Q78: 48 | R78: 47 | S78: 58 | T78: 821 | U78: 54 | V78: 1513 | W78: 2388
A79: 75 | B79: 85 | C79: DAVID INGLES 1 (GREENVILLE,MI) | D79: 63 | E79: 56 | F79: 57 | G79: 48 | H79: 22 | I79: 43 | J79: 54 | K79: 62 | L79: 64 | M79: 53 | N79: 27 | O79: 58 | P79: 59 | Q79: 42 | R79: 49 | S79: 61 | T79: 818 | U79: 66 | V79: 1504 | W79: 2388
A80: 77 | B80: 94 | C80: PAUL CASTINO (TEGA CAY,SC) | D80: 60 | E80: 50 | F80: 61 | G80: 56 | H80: 32 | I80: 46 | J80: 55 | K80: 63 | L80: 64 | M80: 45 | N80: 22 | O80: 58 | P80: 62 | Q80: 49 | R80: 41 | S80: 57 | T80: 821 | U80: 66 | V80: 1500 | W80: 2387
A81: 78 | B81: 76 | C81: LEWIS COLLIER REALE (LEXINGTON PARK,MD) | D81: 62 | E81: 53 | F81: 56 | G81: 59 | H81: 29 | I81: 38 | J81: 47 | K81: 54 | L81: 61 | M81: 51 | N81: 42 | O81: 55 | P81: 60 | Q81: 49 | R81: 40 | S81: 52 | T81: 808 | U81: 66 | V81: 1511 | W81: 2385
A82: 79 | B82: 38 | C82: HARMON II (CHICAGO,IL) | D82: 61 | E82: 53 | F82: 60 | G82: 54 | H82: 28 | I82: 48 | J82: 55 | K82: 64 | L82: 62 | M82: 30 | N82: 35 | O82: 51 | P82: 63 | Q82: 50 | R82: 34 | S82: 38 | T82: 786 | U82: 60 | V82: 1538 | W82: 2384
A83: 79 | B83: 78 | C83: DAVID INGLES 3 (GREENVILLE,MI) | D83: 56 | E83: 58 | F83: 61 | G83: 48 | H83: 23 | I83: 44 | J83: 52 | K83: 64 | L83: 55 | M83: 62 | N83: 30 | O83: 59 | P83: 60 | Q83: 40 | R83: 39 | S83: 63 | T83: 814 | U83: 60 | V83: 1510 | W83: 2384
A84: 79 | B84: 100 | C84: JOE ENZYME (SAUNDERSTOWN,RI) | D84: 58 | E84: 46 | F84: 61 | G84: 55 | H84: 25 | I84: 47 | J84: 64 | K84: 56 | L84: 60 | M84: 50 | N84: 27 | O84: 63 | P84: 62 | Q84: 49 | R84: 44 | S84: 54 | T84: 821 | U84: 66 | V84: 1497 | W84: 2384
A85: 82 | B85: 58 | C85: MIKE JACOBUS (NEW ALBANY,OH) | D85: 60 | E85: 32 | F85: 55 | G85: 63 | H85: 42 | I85: 47 | J85: 53 | K85: 61 | L85: 62 | M85: 46 | N85: 34 | O85: 56 | P85: 64 | Q85: 45 | R85: 28 | S85: 58 | T85: 806 | U85: 54 | V85: 1522 | W85: 2382
A86: 83 | B86: 102 | C86: ROS60007#1 (ELMHURST,IL) | D86: 64 | E86: 55 | F86: 54 | G86: 60 | H86: 32 | I86: 51 | J86: 49 | K86: 57 | L86: 61 | M86: 50 | N86: 27 | O86: 58 | P86: 63 | Q86: 41 | R86: 39 | S86: 59 | T86: 820 | U86: 72 | V86: 1489 | W86: 2381
A87: 83 | B87: 109 | C87: DAN SHIVE 2 (WINFIELD,IL) | D87: 60 | E87: 50 | F87: 52 | G87: 64 | H87: 38 | I87: 45 | J87: 49 | K87: 59 | L87: 63 | M87: 44 | N87: 29 | O87: 57 | P87: 62 | Q87: 55 | R87: 47 | S87: 58 | T87: 832 | U87: 66 | V87: 1483 | W87: 2381
A88: 85 | B88: 96 | C88: MATT PALUMBO (WEST DUNDEE,IL) | D88: 61 | E88: 54 | F88: 59 | G88: 55 | H88: 22 | I88: 42 | J88: 53 | K88: 57 | L88: 64 | M88: 52 | N88: 26 | O88: 58 | P88: 60 | Q88: 46 | R88: 45 | S88: 62 | T88: 816 | U88: 66 | V88: 1498 | W88: 2380
A89: 86 | B89: 76 | C89: PAUL ASTORINO (MOUNT PROSPECT,IL) | D89: 63 | E89: 52 | F89: 51 | G89: 59 | H89: 24 | I89: 53 | J89: 55 | K89: 61 | L89: 62 | M89: 47 | N89: 15 | O89: 54 | P89: 64 | Q89: 49 | R89: 31 | S89: 56 | T89: 796 | U89: 72 | V89: 1511 | W89: 2379
A90: 86 | B90: 89 | C90: CHRIS SEXTON (DANBURY,CT) | D90: 64 | E90: 34 | F90: 56 | G90: 48 | H90: 36 | I90: 42 | J90: 52 | K90: 59 | L90: 63 | M90: 50 | N90: 23 | O90: 61 | P90: 60 | Q90: 55 | R90: 51 | S90: 58 | T90: 812 | U90: 66 | V90: 1501 | W90: 2379
A91: 86 | B91: 106 | C91: ED LORGEREE II (BUFFALO GROVE,IL) | D91: 56 | E91: 61 | F91: 57 | G91: 51 | H91: 23 | I91: 50 | J91: 55 | K91: 59 | L91: 63 | M91: 47 | N91: 30 | O91: 58 | P91: 60 | Q91: 53 | R91: 37 | S91: 62 | T91: 822 | U91: 72 | V91: 1485 | W91: 2379
A92: 89 | B92: 84 | C92: RYAN ROZYCKI (MYRTLE BEACH,SC) | D92: 55 | E92: 60 | F92: 54 | G92: 61 | H92: 30 | I92: 41 | J92: 52 | K92: 63 | L92: 56 | M92: 58 | N92: 19 | O92: 64 | P92: 57 | Q92: 37 | R92: 38 | S92: 62 | T92: 807 | U92: 66 | V92: 1505 | W92: 2378
A93: 90 | B93: 73 | C93: JERRY VANDERMOLEN (ELMHURST,IL) | D93: 62 | E93: 52 | F93: 51 | G93: 58 | H93: 34 | I93: 39 | J93: 53 | K93: 59 | L93: 63 | M93: 50 | N93: 16 | O93: 60 | P93: 57 | Q93: 49 | R93: 33 | S93: 56 | T93: 792 | U93: 72 | V93: 1513 | W93: 2377
A94: 90 | B94: 105 | C94: ROS60007#2 (ROSELLE,IL) | D94: 62 | E94: 55 | F94: 54 | G94: 60 | H94: 31 | I94: 51 | J94: 41 | K94: 57 | L94: 58 | M94: 50 | N94: 28 | O94: 61 | P94: 59 | Q94: 49 | R94: 40 | S94: 63 | T94: 819 | U94: 72 | V94: 1486 | W94: 2377
A95: 92 | B95: 71 | C95: TAPCITY (BURBANK,CA) | D95: 60 | E95: 51 | F95: 52 | G95: 61 | H95: 39 | I95: 32 | J95: 53 | K95: 59 | L95: 64 | M95: 55 | N95: 16 | O95: 58 | P95: 62 | Q95: 22 | R95: 49 | S95: 57 | T95: 790 | U95: 72 | V95: 1514 | W95: 2376
A96: 93 | B96: 103 | C96: MICHAEL RUSSO II (BELMONT,MI) | D96: 64 | E96: 50 | F96: 57 | G96: 55 | H96: 32 | I96: 44 | J96: 54 | K96: 60 | L96: 59 | M96: 52 | N96: 28 | O96: 61 | P96: 63 | Q96: 42 | R96: 43 | S96: 58 | T96: 822 | U96: 66 | V96: 1487 | W96: 2375
A97: 94 | B97: 82 | C97: CHRIS GRANDE1 (IN - MISHAWAKA,IN) | D97: 64 | E97: 33 | F97: 60 | G97: 53 | H97: 24 | I97: 49 | J97: 56 | K97: 58 | L97: 63 | M97: 42 | N97: 29 | O97: 59 | P97: 62 | Q97: 51 | R97: 38 | S97: 57 | T97: 798 | U97: 66 | V97: 1507 | W97: 2371
A98: 95 | B98: 89 | C98: EHOOTER (LAKE STEVENS,WA) | D98: 62 | E98: 51 | F98: 58 | G98: 56 | H98: 25 | I98: 57 | J98: 45 | K98: 63 | L98: 64 | M98: 47 | N98: 26 | O98: 59 | P98: 60 | Q98: 42 | R98: 33 | S98: 61 | T98: =(SUM(D98:S98)) -> 809 | U98: =COUNTIF(D98:S98,">48")*6 -> 60 | V98: 1501 | W98: =T98+U98+V98 -> 2370
A99: 96 | B99: 106 | C99: MATT STEHOUWER 1 (SPRING LAKE,MI) | D99: 63 | E99: 56 | F99: 47 | G99: 57 | H99: 34 | I99: 45 | J99: 55 | K99: 60 | L99: 62 | M99: 51 | N99: 46 | O99: 58 | P99: 64 | Q99: 27 | R99: 40 | S99: 59 | T99: 824 | U99: 60 | V99: 1485 | W99: 2369
A100: 97 | B100: 85 | C100: CHERI BJERKAN (ELMHURST,IL) | D100: 63 | E100: 48 | F100: 58 | G100: 55 | H100: 34 | I100: 49 | J100: 62 | K100: 56 | L100: 60 | M100: 44 | N100: 21 | O100: 61 | P100: 64 | Q100: 31 | R100: 41 | S100: 57 | T100: 804 | U100: 60 | V100: 1504 | W100: 2368
A101: 97 | B101: 111 | C101: PURDUE_PETE II (ARLINGTON HEIGHTS,IL) | D101: 63 | E101: 56 | F101: 51 | G101: 57 | H101: 32 | I101: 44 | J101: 54 | K101: 61 | L101: 60 | M101: 39 | N101: 23 | O101: 64 | P101: 62 | Q101: 50 | R101: 46 | S101: 59 | T101: 821 | U101: 66 | V101: 1481 | W101: 2368
A102: 99 | B102: 56 | C102: TERRY REDDINGTON (RIDGEFIELD,CT) | D102: 64 | E102: 57 | F102: 53 | G102: 47 | H102: 40 | I102: 39 | J102: 38 | K102: 61 | L102: 62 | M102: 56 | N102: 21 | O102: 59 | P102: 60 | Q102: 34 | R102: 35 | S102: 63 | T102: 789 | U102: 54 | V102: 1524 | W102: 2367
A103: 100 | B103: 111 | C103: PURDUE_PETE (ARLINGTON HEIGHTS,IL) | D103: 62 | E103: 56 | F103: 51 | G103: 57 | H103: 32 | I103: 44 | J103: 54 | K103: 58 | L103: 64 | M103: 39 | N103: 23 | O103: 60 | P103: 59 | Q103: 50 | R103: 46 | S103: 61 | T103: 816 | U103: 66 | V103: 1481 | W103: 2363
A104: 101 | B104: 106 | C104: ASH (PORTLAND,OR) | D104: 63 | E104: 55 | F104: 49 | G104: 57 | H104: 36 | I104: 37 | J104: 44 | K104: 61 | L104: 64 | M104: 51 | N104: 13 | O104: 58 | P104: 59 | Q104: 48 | R104: 53 | S104: 62 | T104: 810 | U104: 66 | V104: 1485 | W104: 2361
A105: 102 | B105: 116 | C105: MIKE JASPERSEN (LONG BEACH,CA) | D105: 64 | E105: 50 | F105: 56 | G105: 57 | H105: 28 | I105: 32 | J105: 46 | K105: 53 | L105: 54 | M105: 59 | N105: 22 | O105: 62 | P105: 63 | Q105: 51 | R105: 55 | S105: 58 | T105: 810 | U105: 72 | V105: 1476 | W105: 2358
A106: 103 | B106: 89 | C106: JEFF SEREMAK #2 (VILLA PARK,IL) | D106: 60 | E106: 46 | F106: 54 | G106: 61 | H106: 25 | I106: 50 | J106: 48 | K106: 59 | L106: 64 | M106: 47 | N106: 20 | O106: 58 | P106: 62 | Q106: 53 | R106: 31 | S106: 56 | T106: 794 | U106: 60 | V106: 1501 | W106: 2355
A107: 104 | B107: 96 | C107: HARRY JAFFE 2 (CHANDLER,AZ) | D107: 63 | E107: 44 | F107: 59 | G107: 48 | H107: 33 | I107: 46 | J107: 61 | K107: 56 | L107: 64 | M107: 43 | N107: 22 | O107: 58 | P107: 62 | Q107: 45 | R107: 47 | S107: 57 | T107: 808 | U107: 48 | V107: 1498 | W107: 2354
A108: 104 | B108: 115 | C108: DANSHIVE 1 (WINFIELD,IL) | D108: 59 | E108: 56 | F108: 51 | G108: 63 | H108: 38 | I108: 47 | J108: 43 | K108: 62 | L108: 64 | M108: 48 | N108: 24 | O108: 57 | P108: 60 | Q108: 44 | R108: 45 | S108: 61 | T108: 822 | U108: 54 | V108: 1478 | W108: 2354
A109: 106 | B109: 110 | C109: JOE JOO 5 KV (JENISON,MI) | D109: 64 | E109: 55 | F109: 59 | G109: 56 | H109: 40 | I109: 20 | J109: 53 | K109: 58 | L109: 60 | M109: 42 | N109: 41 | O109: 61 | P109: 63 | Q109: 43 | R109: 35 | S109: 57 | T109: 807 | U109: 60 | V109: 1482 | W109: 2349
A110: 107 | B110: 69 | C110: JOEJOO1 (JENISON,MI) | D110: 63 | E110: 49 | F110: 44 | G110: 58 | H110: 24 | I110: 20 | J110: 55 | K110: 62 | L110: 61 | M110: 53 | N110: 34 | O110: 60 | P110: 64 | Q110: 27 | R110: 33 | S110: 59 | T110: 766 | U110: 60 | V110: 1516 | W110: 2342
A111: 108 | B111: 88 | C111: JOE JOO 4 JW (JENISON,MI) | D111: 63 | E111: 56 | F111: 57 | G111: 41 | H111: 33 | I111: 45 | J111: 52 | K111: 61 | L111: 59 | M111: 46 | N111: 43 | O111: 49 | P111: 64 | Q111: 27 | R111: 26 | S111: 60 | T111: 782 | U111: 54 | V111: 1503 | W111: 2339
A112: 109 | B112: 111 | C112: KRESKIN (ST. LOUIS,MO) | D112: 56 | E112: 61 | F112: 59 | G112: 55 | H112: 28 | I112: 41 | J112: 54 | K112: 63 | L112: 64 | M112: 51 | N112: 17 | O112: 52 | P112: 62 | Q112: 32 | R112: 38 | S112: 57 | T112: 790 | U112: 66 | V112: 1481 | W112: 2337
A113: 110 | B113: 119 | C113: JOEJOO2 (JENISON,MI) | D113: 64 | E113: 41 | F113: 60 | G113: 49 | H113: 31 | I113: 55 | J113: 59 | K113: 50 | L113: 58 | M113: 48 | N113: 15 | O113: 63 | P113: 57 | Q113: 53 | R113: 37 | S113: 61 | T113: 801 | U113: 66 | V113: 1466 | W113: 2333
A114: 111 | B114: 103 | C114: DAN KELLY#2 (FRANKFORT,IL) | D114: 60 | E114: 54 | F114: 63 | G114: 42 | H114: 35 | I114: 44 | J114: 61 | K114: 57 | L114: 62 | M114: 43 | N114: 16 | O114: 56 | P114: 59 | Q114: 46 | R114: 29 | S114: 64 | T114: 791 | U114: 54 | V114: 1487 | W114: 2332
A115: 111 | B115: 114 | C115: GARY PIETRZAK III (REDONDO BEACH,CA) | D115: 63 | E115: 53 | F115: 55 | G115: 48 | H115: 35 | I115: 39 | J115: 61 | K115: 52 | L115: 64 | M115: 54 | N115: 19 | O115: 58 | P115: 62 | Q115: 40 | R115: 29 | S115: 60 | T115: 792 | U115: 60 | V115: 1480 | W115: 2332
A116: 113 | B116: 117 | C116: MICHAEL CIESLIK (CHICAGO,IL) | D116: 63 | E116: 52 | F116: 58 | G116: 32 | H116: 38 | I116: 42 | J116: 57 | K116: 61 | L116: 64 | M116: 41 | N116: 25 | O116: 60 | P116: 62 | Q116: 40 | R116: 46 | S116: 59 | T116: 800 | U116: 54 | V116: 1475 | W116: 2329
A117: 114 | B117: 89 | C117: BRADYSACK1 (GRAND RAPIDS,MI) | D117: 62 | E117: 36 | F117: 55 | G117: 48 | H117: 35 | I117: 43 | J117: 56 | K117: 61 | L117: 63 | M117: 51 | N117: 20 | O117: 59 | P117: 64 | Q117: 33 | R117: 30 | S117: 57 | T117: 773 | U117: 54 | V117: 1501 | W117: 2328
A118: 115 | B118: 82 | C118: DOUG SCOTT (GREEN LAKE,WI) | D118: 64 | E118: 48 | F118: 57 | G118: 45 | H118: 33 | I118: 32 | J118: 61 | K118: 56 | L118: 63 | M118: 47 | N118: 17 | O118: 59 | P118: 62 | Q118: 30 | R118: 39 | S118: 55 | T118: 768 | U118: 48 | V118: 1507 | W118: 2323
A119: 116 | B119: 118 | C119: CHRIS GRANDE II (MISHAWAKA,IN) | D119: 56 | E119: 63 | F119: 55 | G119: 46 | H119: 45 | I119: 44 | J119: 61 | K119: 53 | L119: 64 | M119: 35 | N119: 4 | O119: 58 | P119: 62 | Q119: 52 | R119: 40 | S119: 51 | T119: 789 | U119: 60 | V119: 1471 | W119: 2320
A120: 116 | B120: 120 | C120: JEFF DUCKWORTH (SUGAR GROVE,IL) | D120: 63 | E120: 56 | F120: 59 | G120: 54 | H120: 19 | I120: 45 | J120: 61 | K120: 53 | L120: 62 | M120: 55 | N120: 34 | O120: 57 | P120: 64 | Q120: 32 | R120: 20 | S120: 58 | T120: 792 | U120: 66 | V120: 1462 | W120: 2320
A121: 118 | B121: 89 | C121: HARMON I (CHICAGO,IL) | D121: 57 | E121: 33 | F121: 49 | G121: 64 | H121: 24 | I121: 41 | J121: 48 | K121: 61 | L121: 63 | M121: 50 | N121: 37 | O121: 46 | P121: 62 | Q121: 51 | R121: 36 | S121: 47 | T121: 769 | U121: 48 | V121: 1501 | W121: 2318
A122: 119 | B122: 123 | C122: RICH LANDER (DOWNERS GROVE,IL) | D122: 55 | E122: 60 | F122: 54 | G122: 62 | H122: 24 | I122: 40 | J122: 56 | K122: 63 | L122: 64 | M122: 53 | N122: 15 | O122: 58 | P122: 61 | Q122: 27 | R122: 51 | S122: 57 | T122: 800 | U122: 72 | V122: 1445 | W122: 2317
A123: 120 | B123: 121 | C123: JEFF GOLDMAN (NORWALK,CT) | D123: 58 | E123: 57 | F123: 61 | G123: 55 | H123: 40 | I123: 38 | J123: 53 | K123: 60 | L123: 64 | M123: 41 | N123: 20 | O123: 56 | P123: 59 | Q123: 37 | R123: 36 | S123: 62 | T123: 797 | U123: 60 | V123: 1457 | W123: 2314
A124: 121 | B124: 126 | C124: JAMES THOMAS 2 (HERNANDO,FL) | D124: 63 | E124: 45 | F124: 53 | G124: 57 | H124: 30 | I124: 50 | J124: 54 | K124: 62 | L124: 59 | M124: 47 | N124: 22 | O124: 64 | P124: 61 | Q124: 48 | R124: 44 | S124: 60 | T124: 819 | U124: 60 | V124: 1433 | W124: 2312
A125: 122 | B125: 123 | C125: JIM (ELMHURST,IL) | D125: 62 | E125: 28 | F125: 47 | G125: 60 | H125: 40 | I125: 49 | J125: 55 | K125: 61 | L125: 64 | M125: 54 | N125: 17 | O125: 57 | P125: 63 | Q125: 48 | R125: 42 | S125: 58 | T125: 805 | U125: 60 | V125: 1445 | W125: 2310
A126: 123 | B126: 96 | C126: LEWIS COLLIER ACC (LEXINGTON PARK,MD) | D126: 62 | E126: 53 | F126: 48 | G126: 56 | H126: 29 | I126: 38 | J126: 47 | K126: 54 | L126: 61 | M126: 51 | N126: 33 | O126: 42 | P126: 60 | Q126: 49 | R126: 40 | S126: 39 | T126: 762 | U126: 48 | V126: 1498 | W126: 2308
A127: 124 | B127: 122 | C127: GARY PIETRZAK II (REDONDO BEACH,CA) | D127: 62 | E127: 56 | F127: 55 | G127: 48 | H127: 27 | I127: 39 | J127: 52 | K127: 59 | L127: 64 | M127: 54 | N127: 21 | O127: 58 | P127: 60 | Q127: 40 | R127: 29 | S127: 61 | T127: 785 | U127: 60 | V127: 1454 | W127: 2299
A128: 125 | B128: 71 | C128: TERRY REDDINGTON 2 (RIDGEFIELD,CT) | D128: 63 | E128: 54 | F128: 51 | G128: 49 | H128: 23 | I128: 31 | J128: 53 | K128: 60 | L128: 64 | M128: 40 | N128: 41 | O128: 34 | P128: 61 | Q128: 29 | R128: 38 | S128: 44 | T128: 735 | U128: 48 | V128: 1514 | W128: 2297
A129: 125 | B129: 127 | C129: JAK (BARRINGTON,IL) | D129: 63 | E129: 26 | F129: 46 | G129: 54 | H129: 29 | I129: 39 | J129: 56 | K129: 61 | L129: 59 | M129: 51 | N129: 41 | O129: 62 | P129: 60 | Q129: 53 | R129: 42 | S129: 64 | T129: 806 | U129: 60 | V129: 1431 | W129: 2297
A130: 127 | B130: 125 | C130: SECOND ENTRY (CHICAGO,IL) | D130: 64 | E130: 32 | F130: 53 | G130: 58 | H130: 24 | I130: 52 | J130: 61 | K130: 56 | L130: 62 | M130: 50 | N130: 22 | O130: 55 | P130: 59 | Q130: 47 | R130: 27 | S130: 63 | T130: =(SUM(D130:S130)) -> 785 | U130: 66 | V130: 1435 | W130: =T130+U130+V130 -> 2286
A131: 128 | B131: 129 | C131: ART SCHLICHTER (BUFFALO GROVE,IL) | D131: 55 | E131: 58 | F131: 50 | G131: 63 | H131: 27 | I131: 43 | J131: 51 | K131: 62 | L131: 64 | M131: 49 | N131: 8 | O131: 41 | P131: 61 | Q131: 52 | R131: 21 | S131: 60 | T131: =(SUM(D131:S131)) -> 765 | U131: 66 | V131: 1366 | W131: =T131+U131+V131 -> 2197
A132: 129 | B132: 128 | C132: LARRY ROTHENBERG (GLENDALE,WI) | D132: 63 | E132: 19 | F132: 43 | G132: 42 | H132: 22 | I132: 55 | J132: 62 | K132: 56 | L132: 64 | M132: 35 | N132: 46 | O132: 59 | P132: 58 | Q132: 34 | R132: 24 | S132: 61 | T132: =(SUM(D132:S132)) -> 743 | U132: 48 | V132: 1388 | W132: =T132+U132+V132 -> 2179

Sheet RD 1
A1: RD 1 | B1: Name | C1: Duke | D1: TCU | E1: SJU | F1: KAN | G1: LSVL | H1: MSU | I1: UCLA | J1: CT | K1: FL | L1: IA | M1: Vandy | N1: NEB | O1: VCU | P1: IL | Q1: TXAM | R1: Hou | S1: AZ | T1: UTST | U1: HPT | V1: ARK | W1: TX | X1: GZ | Y1: Mia | Z1: Pur | AA1: MI | AB1: STL | AC1: TXTech | AD1: AL | AE1: TN | AF1: VA | AG1: KY | AH1: ISU | AI1: TLY | AJ1: BNS | AK1: RD 1
B2: AVERAGE | C2: 61 | D2: 30 | E2: 50 | F2: 47 | G2: 36 | H2: 55 | I2: 42 | J2: 55 | K2: 59 | L2: 34 | M2: 50 | N2: 45 | O2: 31 | P2: 54 | Q2: 29 | R2: 60 | S2: 62 | T2: 33 | U2: 20 | V2: 50 | W2: 27 | X2: 52 | Y2: 35 | Z2: 57 | AA2: 61 | AB2: 30 | AC2: 42 | AD2: 46 | AE2: 42 | AF2: 52 | AG2: 34 | AH2: 58 | AI2: =(SUM(C2:AH2)) -> 1439 | AJ2: =COUNTIF(C2:AH2,">32")*3 -> 78 | AK2: =AI2+AJ2 -> 1517
A3: 1 | B3: LKLK (SCHAUMBURG,IL) | C3: 61 | D3: 40 | E3: 52 | F3: 48 | G3: 44 | H3: 60 | I3: 28 | J3: 53 | K3: 57 | L3: 42 | M3: 51 | N3: 47 | O3: 34 | P3: 49 | Q3: 35 | R3: 64 | S3: 59 | T3: 41 | U3: 33 | V3: 54 | W3: 22 | X3: 62 | Y3: 27 | Z3: 56 | AA3: 63 | AB3: 39 | AC3: 46 | AD3: 50 | AE3: 45 | AF3: 58 | AG3: 29 | AH3: 55 | AI3: 1504 | AJ3: 84 | AK3: 1588
A4: 2 | B4: WILLIAM FORCE TERHUNE (ROCKFORD,IL) | C4: 64 | D4: 35 | E4: 48 | F4: 49 | G4: 43 | H4: 53 | I4: 42 | J4: 57 | K4: 60 | L4: 36 | M4: 51 | N4: 47 | O4: 28 | P4: 61 | Q4: 29 | R4: 56 | S4: 63 | T4: 33 | U4: 16 | V4: 54 | W4: 32 | X4: 55 | Y4: 40 | Z4: 58 | AA4: 62 | AB4: 34 | AC4: 50 | AD4: 46 | AE4: 45 | AF4: 52 | AG4: 39 | AH4: 59 | AI4: 1497 | AJ4: 84 | AK4: 1581
A5: 3 | B5: ROBY (SCHAUMBURG,IL) | C5: 64 | D5: 32 | E5: 48 | F5: 50 | G5: 45 | H5: 55 | I5: 46 | J5: 57 | K5: 58 | L5: 40 | M5: 47 | N5: 51 | O5: 26 | P5: 56 | Q5: 34 | R5: 62 | S5: 60 | T5: 38 | U5: 21 | V5: 49 | W5: 22 | X5: 53 | Y5: 42 | Z5: 63 | AA5: 61 | AB5: 37 | AC5: 41 | AD5: 52 | AE5: 36 | AF5: 54 | AG5: 35 | AH5: 59 | AI5: 1494 | AJ5: 84 | AK5: 1578
A6: 4 | B6: MARTY KELLY (NEW LENOX,IL) | C6: 60 | D6: 24 | E6: 41 | F6: 56 | G6: 40 | H6: 63 | I6: 42 | J6: 54 | K6: 61 | L6: 43 | M6: 52 | N6: 47 | O6: 38 | P6: 58 | Q6: 36 | R6: 55 | S6: 64 | T6: 33 | U6: 17 | V6: 46 | W6: 49 | X6: 48 | Y6: 28 | Z6: 59 | AA6: 62 | AB6: 34 | AC6: 32 | AD6: 50 | AE6: 45 | AF6: 53 | AG6: 44 | AH6: 57 | AI6: 1491 | AJ6: 84 | AK6: 1575
A7: 5 | B7: ALEXANDER PETER BERTHOUD (ROCKFORD,IL) | C7: 63 | D7: 20 | E7: 48 | F7: 49 | G7: 43 | H7: 57 | I7: 42 | J7: 53 | K7: 61 | L7: 36 | M7: 47 | N7: 51 | O7: 28 | P7: 60 | Q7: 29 | R7: 56 | S7: 62 | T7: 33 | U7: 16 | V7: 54 | W7: 32 | X7: 55 | Y7: 40 | Z7: 58 | AA7: 64 | AB7: 34 | AC7: 46 | AD7: 50 | AE7: 45 | AF7: 52 | AG7: 39 | AH7: 59 | AI7: 1482 | AJ7: 81 | AK7: 1563
A8: 5 | B8: PAUL PARKS II (NORTH LAS VEGAS,NV) | C8: 64 | D8: 22 | E8: 53 | F8: 41 | G8: 38 | H8: 59 | I8: 44 | J8: 50 | K8: 58 | L8: 43 | M8: 54 | N8: 48 | O8: 28 | P8: 55 | Q8: 32 | R8: 62 | S8: 63 | T8: 34 | U8: 20 | V8: 45 | W8: 29 | X8: 49 | Y8: 46 | Z8: 57 | AA8: 60 | AB8: 36 | AC8: 51 | AD8: 47 | AE8: 40 | AF8: 61 | AG8: 37 | AH8: 56 | AI8: 1482 | AJ8: 81 | AK8: 1563
A9: 7 | B9: JAMES THOMAS 1 (HERNANDO,FL) | C9: 64 | D9: 29 | E9: 19 | F9: 49 | G9: 41 | H9: 58 | I9: 37 | J9: 53 | K9: 63 | L9: 35 | M9: 46 | N9: 50 | O9: 42 | P9: 54 | Q9: 26 | R9: 60 | S9: 59 | T9: 31 | U9: 47 | V9: 55 | W9: 23 | X9: 51 | Y9: 39 | Z9: 62 | AA9: 61 | AB9: 32 | AC9: 48 | AD9: 52 | AE9: 44 | AF9: 56 | AG9: 40 | AH9: 57 | AI9: 1483 | AJ9: 78 | AK9: 1561
A10: 8 | B10: LKMY (SCHAUMBURG,IL) | C10: 63 | D10: 25 | E10: 51 | F10: 46 | G10: 31 | H10: 52 | I10: 42 | J10: 58 | K10: 59 | L10: 37 | M10: 50 | N10: 47 | O10: 34 | P10: 53 | Q10: 24 | R10: 62 | S10: 64 | T10: 39 | U10: 33 | V10: 54 | W10: 20 | X10: 48 | Y10: 41 | Z10: 57 | AA10: 60 | AB10: 38 | AC10: 45 | AD10: 56 | AE10: 30 | AF10: 55 | AG10: 43 | AH10: 61 | AI10: 1478 | AJ10: 81 | AK10: 1559
A11: 8 | B11: ROZIPOLLACK II (BOCA RATON,FL) | C11: 63 | D11: 30 | E11: 50 | F11: 47 | G11: 45 | H11: 53 | I11: 41 | J11: 57 | K11: 61 | L11: 40 | M11: 54 | N11: 46 | O11: 27 | P11: 56 | Q11: 26 | R11: 60 | S11: 62 | T11: 36 | U11: 23 | V11: 52 | W11: 17 | X11: 55 | Y11: 33 | Z11: 58 | AA11: 64 | AB11: 34 | AC11: 49 | AD11: 48 | AE11: 44 | AF11: 51 | AG11: 37 | AH11: 59 | AI11: 1478 | AJ11: 81 | AK11: 1559
A12: 10 | B12: DAN ATLAS (EVERGREEN,CO) | C12: 62 | D12: 43 | E12: 48 | F12: 52 | G12: 29 | H12: 60 | I12: 42 | J12: 55 | K12: 63 | L12: 40 | M12: 49 | N12: 32 | O12: 30 | P12: 58 | Q12: 41 | R12: 54 | S12: 64 | T12: 34 | U12: 35 | V12: 51 | W12: 21 | X12: 59 | Y12: 26 | Z12: 56 | AA12: 61 | AB12: 36 | AC12: 47 | AD12: 50 | AE12: 45 | AF12: 57 | AG12: 27 | AH12: 53 | AI12: =(SUM(C12:AH12)) -> 1480 | AJ12: 78 | AK12: 1558
A13: 10 | B13: K ADAMS 1 (SPRING LAKE,MI) | C13: 64 | D13: 30 | E13: 49 | F13: 45 | G13: 43 | H13: 57 | I13: 41 | J13: 56 | K13: 61 | L13: 36 | M13: 52 | N13: 46 | O13: 28 | P13: 55 | Q13: 25 | R13: 60 | S13: 63 | T13: 34 | U13: 21 | V13: 51 | W13: 23 | X13: 54 | Y13: 39 | Z13: 58 | AA13: 62 | AB13: 32 | AC13: 48 | AD13: 50 | AE13: 47 | AF13: 53 | AG13: 38 | AH13: 59 | AI13: 1480 | AJ13: 78 | AK13: 1558
A14: 12 | B14: YAHTZEE 2 (ALLEGAN,MI) | C14: 63 | D14: 30 | E14: 51 | F14: 44 | G14: 47 | H14: 50 | I14: 41 | J14: 59 | K14: 58 | L14: 28 | M14: 49 | N14: 43 | O14: 45 | P14: 52 | Q14: 39 | R14: 61 | S14: 62 | T14: 26 | U14: 13 | V14: 56 | W14: 37 | X14: 55 | Y14: 34 | Z14: 53 | AA14: 64 | AB14: 24 | AC14: 48 | AD14: 57 | AE14: 38 | AF14: 54 | AG14: 33 | AH14: 60 | AI14: 1474 | AJ14: 81 | AK14: 1555
A15: 13 | B15: HOPELESS AT HOOPS AND BRIDGE (BRONX,NY) | C15: 64 | D15: 25 | E15: 55 | F15: 32 | G15: 44 | H15: 54 | I15: 41 | J15: 57 | K15: 60 | L15: 39 | M15: 47 | N15: 53 | O15: 24 | P15: 56 | Q15: 35 | R15: 61 | S15: 62 | T15: 38 | U15: 15 | V15: 51 | W15: 49 | X15: 48 | Y15: 36 | Z15: 58 | AA15: 63 | AB15: 26 | AC15: 45 | AD15: 52 | AE15: 46 | AF15: 50 | AG15: 29 | AH15: 59 | AI15: 1474 | AJ15: 78 | AK15: 1552
A16: 14 | B16: MATT OLSON (LITTLETON,CO) | C16: 63 | D16: 25 | E16: 49 | F16: 45 | G16: 43 | H16: 57 | I16: 40 | J16: 56 | K16: 59 | L16: 37 | M16: 52 | N16: 46 | O16: 28 | P16: 55 | Q16: 26 | R16: 61 | S16: 62 | T16: 34 | U16: 17 | V16: 51 | W16: 27 | X16: 54 | Y16: 36 | Z16: 58 | AA16: 60 | AB16: 29 | AC16: 50 | AD16: 48 | AE16: 47 | AF16: 53 | AG16: 39 | AH16: 64 | AI16: 1471 | AJ16: 78 | AK16: 1549
A17: 15 | B17: JEFF SEREMAK (VILLA PARK,IL) | C17: 64 | D17: 26 | E17: 53 | F17: 47 | G17: 44 | H17: 58 | I17: 43 | J17: 55 | K17: 60 | L17: 37 | M17: 50 | N17: 46 | O17: 35 | P17: 54 | Q17: 24 | R17: 61 | S17: 62 | T17: 38 | U17: 19 | V17: 52 | W17: 33 | X17: 57 | Y17: 29 | Z17: 56 | AA17: 63 | AB17: 25 | AC17: 30 | AD17: 51 | AE17: 49 | AF17: 48 | AG17: 42 | AH17: 59 | AI17: 1470 | AJ17: 78 | AK17: 1548
A18: 15 | B18: JOHN KOWAL (MEDINA,OH) | C18: 63 | D18: 25 | E18: 50 | F18: 46 | G18: 43 | H18: 57 | I18: 40 | J18: 55 | K18: 60 | L18: 38 | M18: 48 | N18: 53 | O18: 35 | P18: 56 | Q18: 33 | R18: 62 | S18: 64 | T18: 34 | U18: 18 | V18: 52 | W18: 28 | X18: 54 | Y18: 24 | Z18: 58 | AA18: 61 | AB18: 21 | AC18: 45 | AD18: 49 | AE18: 44 | AF18: 51 | AG18: 41 | AH18: 59 | AI18: 1467 | AJ18: 81 | AK18: 1548
A19: 15 | B19: PHILIP SPENCER (ROCKFORD,IL) | C19: 63 | D19: 20 | E19: 48 | F19: 49 | G19: 43 | H19: 53 | I19: 42 | J19: 57 | K19: 61 | L19: 36 | M19: 51 | N19: 47 | O19: 28 | P19: 56 | Q19: 29 | R19: 60 | S19: 64 | T19: 33 | U19: 16 | V19: 54 | W19: 32 | X19: 55 | Y19: 40 | Z19: 58 | AA19: 62 | AB19: 22 | AC19: 46 | AD19: 50 | AE19: 45 | AF19: 52 | AG19: 39 | AH19: 59 | AI19: 1470 | AJ19: 78 | AK19: 1548
A20: 18 | B20: JIM PIETRZAK (LA GRANGE,IL) | C20: 56 | D20: 35 | E20: 58 | F20: 46 | G20: 27 | H20: 63 | I20: 42 | J20: 54 | K20: 62 | L20: 40 | M20: 52 | N20: 44 | O20: 34 | P20: 57 | Q20: 20 | R20: 55 | S20: 64 | T20: 36 | U20: 21 | V20: 48 | W20: 49 | X20: 45 | Y20: 25 | Z20: 59 | AA20: 60 | AB20: 38 | AC20: 50 | AD20: 43 | AE20: 51 | AF20: 47 | AG20: 24 | AH20: 61 | AI20: 1466 | AJ20: 81 | AK20: 1547
A21: 19 | B21: HANK HEISE (OVERLAND PARK,KS) | C21: 63 | D21: 33 | E21: 45 | F21: 52 | G21: 28 | H21: 58 | I21: 43 | J21: 55 | K21: 60 | L21: 37 | M21: 48 | N21: 51 | O21: 40 | P21: 56 | Q21: 30 | R21: 61 | S21: 64 | T21: 24 | U21: 26 | V21: 53 | W21: 25 | X21: 57 | Y21: 42 | Z21: 54 | AA21: 62 | AB21: 36 | AC21: 49 | AD21: 31 | AE21: 50 | AF21: 47 | AG21: 32 | AH21: 59 | AI21: 1471 | AJ21: 75 | AK21: 1546
A22: 19 | B22: MATT HENSING (WAUKEE,IA) | C22: 63 | D22: 40 | E22: 51 | F22: 43 | G22: 42 | H22: 57 | I22: 30 | J22: 56 | K22: 58 | L22: 39 | M22: 50 | N22: 45 | O22: 44 | P22: 55 | Q22: 27 | R22: 61 | S22: 64 | T22: 36 | U22: 13 | V22: 54 | W22: 49 | X22: 46 | Y22: 16 | Z22: 59 | AA22: 62 | AB22: 25 | AC22: 34 | AD22: 53 | AE22: 52 | AF22: 48 | AG22: 33 | AH22: 60 | AI22: 1465 | AJ22: 81 | AK22: 1546
A23: 19 | B23: YAHTZEE 3 (ALLEGAN,MI) | C23: 55 | D23: 38 | E23: 52 | F23: 61 | G23: 44 | H23: 50 | I23: 49 | J23: 60 | K23: 63 | L23: 28 | M23: 53 | N23: 42 | O23: 45 | P23: 41 | Q23: 17 | R23: 59 | S23: 64 | T23: 27 | U23: 20 | V23: 54 | W23: 36 | X23: 58 | Y23: 34 | Z23: 51 | AA23: 56 | AB23: 26 | AC23: 46 | AD23: 62 | AE23: 37 | AF23: 47 | AG23: 33 | AH23: 57 | AI23: 1465 | AJ23: 81 | AK23: 1546
A24: 22 | B24: KSOTTO (OVERLAND PARK,KS) | C24: 64 | D24: 26 | E24: 52 | F24: 44 | G24: 24 | H24: 56 | I24: 45 | J24: 58 | K24: 62 | L24: 34 | M24: 51 | N24: 42 | O24: 31 | P24: 54 | Q24: 25 | R24: 59 | S24: 63 | T24: 35 | U24: 23 | V24: 47 | W24: 50 | X24: 48 | Y24: 40 | Z24: 57 | AA24: 60 | AB24: 29 | AC24: 49 | AD24: 39 | AE24: 46 | AF24: 55 | AG24: 38 | AH24: 61 | AI24: 1467 | AJ24: 78 | AK24: 1545
A25: 23 | B25: BRIAN GERKE (LEES SUMMIT,MO) | C25: 62 | D25: 21 | E25: 49 | F25: 40 | G25: 31 | H25: 58 | I25: 48 | J25: 55 | K25: 57 | L25: 44 | M25: 56 | N25: 29 | O25: 45 | P25: 54 | Q25: 36 | R25: 63 | S25: 64 | T25: 39 | U25: 25 | V25: 52 | W25: 47 | X25: 59 | Y25: 18 | Z25: 50 | AA25: 60 | AB25: 35 | AC25: 51 | AD25: 34 | AE25: 53 | AF25: 46 | AG25: 23 | AH25: 61 | AI25: 1465 | AJ25: 78 | AK25: 1543
A26: 23 | B26: MARK COHEN (PALM COAST,FL) | C26: 60 | D26: 26 | E26: 53 | F26: 44 | G26: 30 | H26: 61 | I26: 48 | J26: 54 | K26: 59 | L26: 35 | M26: 51 | N26: 43 | O26: 40 | P26: 56 | Q26: 28 | R26: 63 | S26: 62 | T26: 33 | U26: 18 | V26: 55 | W26: 21 | X26: 46 | Y26: 37 | Z26: 58 | AA26: 64 | AB26: 34 | AC26: 39 | AD26: 49 | AE26: 52 | AF26: 45 | AG26: 41 | AH26: 57 | AI26: 1462 | AJ26: 81 | AK26: 1543
A27: 23 | B27: ROZIPOLLACK I (BOCA RATON,FL) | C27: 64 | D27: 30 | E27: 51 | F27: 45 | G27: 44 | H27: 55 | I27: 41 | J27: 57 | K27: 61 | L27: 39 | M27: 53 | N27: 48 | O27: 28 | P27: 56 | Q27: 25 | R27: 60 | S27: 62 | T27: 29 | U27: 22 | V27: 50 | W27: 16 | X27: 54 | Y27: 34 | Z27: 58 | AA27: 63 | AB27: 32 | AC27: 47 | AD27: 49 | AE27: 46 | AF27: 52 | AG27: 38 | AH27: 59 | AI27: 1468 | AJ27: 75 | AK27: 1543
A28: 26 | B28: DAVID INGLES 2 (GREENVILLE,MI) | C28: 62 | D28: 36 | E28: 51 | F28: 46 | G28: 40 | H28: 52 | I28: 45 | J28: 59 | K28: 63 | L28: 25 | M28: 44 | N28: 53 | O28: 21 | P28: 58 | Q28: 42 | R28: 55 | S28: 56 | T28: 34 | U28: 15 | V28: 48 | W28: 39 | X28: 50 | Y28: 30 | Z28: 61 | AA28: 64 | AB28: 27 | AC28: 54 | AD28: 37 | AE28: 49 | AF28: 47 | AG28: 38 | AH28: 60 | AI28: 1461 | AJ28: 81 | AK28: 1542
A29: 26 | B29: JANET BECKER (DELRAY BEACH,FL) | C29: 64 | D29: 32 | E29: 50 | F29: 45 | G29: 41 | H29: 56 | I29: 42 | J29: 57 | K29: 61 | L29: 38 | M29: 53 | N29: 47 | O29: 24 | P29: 54 | Q29: 29 | R29: 60 | S29: 62 | T29: 34 | U29: 19 | V29: 49 | W29: 26 | X29: 55 | Y29: 30 | Z29: 58 | AA29: 63 | AB29: 27 | AC29: 44 | AD29: 52 | AE29: 46 | AF29: 51 | AG29: 39 | AH29: 59 | AI29: 1467 | AJ29: 75 | AK29: 1542
A30: 26 | B30: R. JAY BECKER 1 (DELRAY BEACH,FL) | C30: 64 | D30: 32 | E30: 50 | F30: 45 | G30: 41 | H30: 56 | I30: 42 | J30: 57 | K30: 60 | L30: 38 | M30: 53 | N30: 47 | O30: 24 | P30: 54 | Q30: 29 | R30: 61 | S30: 63 | T30: 34 | U30: 19 | V30: 49 | W30: 26 | X30: 55 | Y30: 30 | Z30: 58 | AA30: 62 | AB30: 27 | AC30: 44 | AD30: 52 | AE30: 46 | AF30: 51 | AG30: 39 | AH30: 59 | AI30: 1467 | AJ30: 75 | AK30: 1542
A31: 26 | B31: R. JAY BECKER 2 (DELRAY BEACH,FL) | C31: 63 | D31: 32 | E31: 50 | F31: 45 | G31: 41 | H31: 56 | I31: 42 | J31: 57 | K31: 60 | L31: 38 | M31: 53 | N31: 47 | O31: 24 | P31: 54 | Q31: 29 | R31: 61 | S31: 64 | T31: 34 | U31: 19 | V31: 49 | W31: 26 | X31: 55 | Y31: 30 | Z31: 58 | AA31: 62 | AB31: 27 | AC31: 44 | AD31: 52 | AE31: 46 | AF31: 51 | AG31: 39 | AH31: 59 | AI31: 1467 | AJ31: 75 | AK31: 1542
A32: 26 | B32: R. JAY BECKER 3 (DELRAY BEACH,FL) | C32: 63 | D32: 32 | E32: 50 | F32: 45 | G32: 41 | H32: 56 | I32: 42 | J32: 57 | K32: 61 | L32: 38 | M32: 53 | N32: 47 | O32: 24 | P32: 54 | Q32: 29 | R32: 60 | S32: 62 | T32: 34 | U32: 19 | V32: 49 | W32: 26 | X32: 55 | Y32: 30 | Z32: 58 | AA32: 64 | AB32: 27 | AC32: 44 | AD32: 52 | AE32: 46 | AF32: 51 | AG32: 39 | AH32: 59 | AI32: 1467 | AJ32: 75 | AK32: 1542
A33: 26 | B33: R. JAY BECKER 4 (DELRAY BEACH,FL) | C33: 64 | D33: 32 | E33: 50 | F33: 45 | G33: 41 | H33: 56 | I33: 42 | J33: 57 | K33: 61 | L33: 38 | M33: 53 | N33: 47 | O33: 24 | P33: 54 | Q33: 29 | R33: 60 | S33: 63 | T33: 34 | U33: 19 | V33: 49 | W33: 26 | X33: 55 | Y33: 30 | Z33: 58 | AA33: 62 | AB33: 27 | AC33: 44 | AD33: 52 | AE33: 46 | AF33: 51 | AG33: 39 | AH33: 59 | AI33: 1467 | AJ33: 75 | AK33: 1542
A34: 26 | B34: R. JAY BECKER 5 (DELRAY BEACH,FL) | C34: 63 | D34: 32 | E34: 50 | F34: 45 | G34: 41 | H34: 56 | I34: 42 | J34: 57 | K34: 61 | L34: 38 | M34: 53 | N34: 47 | O34: 24 | P34: 54 | Q34: 29 | R34: 60 | S34: 64 | T34: 34 | U34: 19 | V34: 49 | W34: 26 | X34: 55 | Y34: 30 | Z34: 58 | AA34: 62 | AB34: 27 | AC34: 44 | AD34: 52 | AE34: 46 | AF34: 51 | AG34: 39 | AH34: 59 | AI34: 1467 | AJ34: 75 | AK34: 1542
A35: 33 | B35: CUBSBUDMAN (PLAINFIELD,IL) | C35: 55 | D35: 36 | E35: 57 | F35: 48 | G35: 46 | H35: 53 | I35: 22 | J35: 61 | K35: 63 | L35: 37 | M35: 51 | N35: 44 | O35: 40 | P35: 56 | Q35: 35 | R35: 60 | S35: 64 | T35: 39 | U35: 21 | V35: 54 | W35: 12 | X35: 52 | Y35: 31 | Z35: 58 | AA35: 62 | AB35: 33 | AC35: 42 | AD35: 49 | AE35: 26 | AF35: 50 | AG35: 43 | AH35: 59 | AI35: =(SUM(C35:AH35)) -> 1459 | AJ35: =COUNTIF(C35:AH35,">32")*3 -> 81 | AK35: =AI35+AJ35 -> 1540
A36: 33 | B36: DAN KENNEY (LISLE,IL) | C36: 64 | D36: 29 | E36: 49 | F36: 48 | G36: 50 | H36: 47 | I36: 40 | J36: 58 | K36: 62 | L36: 34 | M36: 51 | N36: 45 | O36: 23 | P36: 55 | Q36: 28 | R36: 59 | S36: 63 | T36: 39 | U36: 20 | V36: 54 | W36: 21 | X36: 53 | Y36: 38 | Z36: 57 | AA36: 60 | AB36: 31 | AC36: 37 | AD36: 56 | AE36: 42 | AF36: 52 | AG36: 36 | AH36: 61 | AI36: 1462 | AJ36: 78 | AK36: 1540
A37: 33 | B37: MARY SULLIVAN (FORT MYERS,FL) | C37: 61 | D37: 29 | E37: 47 | F37: 50 | G37: 44 | H37: 56 | I37: 40 | J37: 55 | K37: 63 | L37: 25 | M37: 48 | N37: 52 | O37: 22 | P37: 54 | Q37: 26 | R37: 60 | S37: 59 | T37: 34 | U37: 31 | V37: 53 | W37: 24 | X37: 58 | Y37: 45 | Z37: 64 | AA37: 62 | AB37: 21 | AC37: 46 | AD37: 49 | AE37: 42 | AF37: 51 | AG37: 37 | AH37: 57 | AI37: 1465 | AJ37: 75 | AK37: 1540
A38: 36 | B38: BILLPOLLACK (BOCA RATON,FL) | C38: 61 | D38: 30 | E38: 38 | F38: 49 | G38: 57 | H38: 45 | I38: 41 | J38: 50 | K38: 63 | L38: 34 | M38: 53 | N38: 40 | O38: 18 | P38: 59 | Q38: 26 | R38: 52 | S38: 60 | T38: 33 | U38: 29 | V38: 55 | W38: 19 | X38: 56 | Y38: 37 | Z38: 64 | AA38: 62 | AB38: 32 | AC38: 44 | AD38: 54 | AE38: 43 | AF38: 51 | AG38: 48 | AH38: 58 | AI38: 1461 | AJ38: 78 | AK38: 1539
A39: 36 | B39: LEE PATON (JUPITER,FL) | C39: 62 | D39: 23 | E39: 47 | F39: 54 | G39: 32 | H39: 58 | I39: 48 | J39: 53 | K39: 55 | L39: 34 | M39: 60 | N39: 43 | O39: 20 | P39: 44 | Q39: 35 | R39: 64 | S39: 63 | T39: 40 | U39: 33 | V39: 56 | W39: 27 | X39: 50 | Y39: 26 | Z39: 57 | AA39: 61 | AB39: 25 | AC39: 51 | AD39: 41 | AE39: 42 | AF39: 52 | AG39: 46 | AH39: 59 | AI39: 1461 | AJ39: 78 | AK39: 1539
A40: 38 | B40: DAN KELLY (FRANKFORT,IL) | C40: 64 | D40: 39 | E40: 55 | F40: 49 | G40: 44 | H40: 60 | I40: 31 | J40: 53 | K40: 59 | L40: 23 | M40: 52 | N40: 41 | O40: 37 | P40: 54 | Q40: 40 | R40: 62 | S40: 63 | T40: 35 | U40: 13 | V40: 51 | W40: 20 | X40: 57 | Y40: 42 | Z40: 56 | AA40: 58 | AB40: 34 | AC40: 45 | AD40: 48 | AE40: 36 | AF40: 47 | AG40: 28 | AH40: 61 | AI40: 1457 | AJ40: 81 | AK40: 1538
A41: 38 | B41: GARY PIETRZAK (REDONDO BEACH,CA) | C41: 62 | D41: 36 | E41: 56 | F41: 45 | G41: 23 | H41: 55 | I41: 48 | J41: 57 | K41: 63 | L41: 35 | M41: 53 | N41: 39 | O41: 41 | P41: 52 | Q41: 22 | R41: 59 | S41: 64 | T41: 33 | U41: 17 | V41: 46 | W41: 44 | X41: 50 | Y41: 42 | Z41: 58 | AA41: 60 | AB41: 25 | AC41: 40 | AD41: 49 | AE41: 47 | AF41: 51 | AG41: 24 | AH41: 61 | AI41: 1457 | AJ41: 81 | AK41: 1538
A42: 38 | B42: HARMON II (CHICAGO,IL) | C42: 61 | D42: 20 | E42: 53 | F42: 44 | G42: 42 | H42: 60 | I42: 40 | J42: 54 | K42: 57 | L42: 28 | M42: 56 | N42: 48 | O42: 32 | P42: 55 | Q42: 45 | R42: 64 | S42: 62 | T42: 33 | U42: 52 | V42: 30 | W42: 35 | X42: 59 | Y42: 29 | Z42: 51 | AA42: 63 | AB42: 21 | AC42: 37 | AD42: 50 | AE42: 34 | AF42: 58 | AG42: 49 | AH42: 38 | AI42: 1460 | AJ42: 78 | AK42: 1538
A43: 38 | B43: JOSH JAGUST (OAK PARK,IL) | C43: 63 | D43: 40 | E43: 51 | F43: 44 | G43: 32 | H43: 58 | I43: 28 | J43: 54 | K43: 55 | L43: 39 | M43: 57 | N43: 43 | O43: 31 | P43: 61 | Q43: 26 | R43: 56 | S43: 64 | T43: 36 | U43: 18 | V43: 53 | W43: 22 | X43: 48 | Y43: 30 | Z43: 59 | AA43: 60 | AB43: 42 | AC43: 50 | AD43: 46 | AE43: 49 | AF43: 45 | AG43: 41 | AH43: 62 | AI43: 1463 | AJ43: 75 | AK43: 1538
A44: 42 | B44: MICHELE HINNENDAE; (PRESQUE ISLE,WI) | C44: 63 | D44: 34 | E44: 50 | F44: 47 | G44: 26 | H44: 58 | I44: 42 | J44: 55 | K44: 62 | L44: 35 | M44: 46 | N44: 51 | O44: 27 | P44: 59 | Q44: 22 | R44: 54 | S44: 64 | T44: 33 | U44: 16 | V44: 48 | W44: 40 | X44: 57 | Y44: 41 | Z44: 56 | AA44: 60 | AB44: 28 | AC44: 53 | AD44: 44 | AE44: 45 | AF44: 52 | AG44: 29 | AH44: 61 | AI44: 1458 | AJ44: 78 | AK44: 1536
A45: 43 | B45: AL KLEEN (DAVIS,IL) | C45: 63 | D45: 24 | E45: 49 | F45: 50 | G45: 37 | H45: 51 | I45: 39 | J45: 59 | K45: 58 | L45: 28 | M45: 57 | N45: 40 | O45: 41 | P45: 55 | Q45: 43 | R45: 62 | S45: 64 | T45: 22 | U45: 15 | V45: 53 | W45: 20 | X45: 52 | Y45: 35 | Z45: 56 | AA45: 60 | AB45: 32 | AC45: 48 | AD45: 47 | AE45: 46 | AF45: 45 | AG45: 44 | AH45: 61 | AI45: 1456 | AJ45: 78 | AK45: 1534
A46: 43 | B46: MICHAEL RUSSO I (BELMONT,MI) | C46: 59 | D46: 35 | E46: 46 | F46: 51 | G46: 44 | H46: 61 | I46: 39 | J46: 55 | K46: 58 | L46: 29 | M46: 47 | N46: 50 | O46: 31 | P46: 49 | Q46: 36 | R46: 63 | S46: 64 | T46: 27 | U46: 16 | V46: 43 | W46: 22 | X46: 53 | Y46: 32 | Z46: 57 | AA46: 60 | AB46: 26 | AC46: 54 | AD46: 45 | AE46: 56 | AF46: 48 | AG46: 41 | AH46: 62 | AI46: 1459 | AJ46: 75 | AK46: 1534
A47: 43 | B47: NICK JASPERSEN (TORRANCE,CA) | C47: 64 | D47: 34 | E47: 44 | F47: 49 | G47: 24 | H47: 54 | I47: 40 | J47: 57 | K47: 61 | L47: 33 | M47: 51 | N47: 46 | O47: 23 | P47: 56 | Q47: 26 | R47: 60 | S47: 63 | T47: 36 | U47: 19 | V47: 53 | W47: 41 | X47: 52 | Y47: 28 | Z47: 58 | AA47: 59 | AB47: 30 | AC47: 55 | AD47: 38 | AE47: 50 | AF47: 48 | AG47: 42 | AH47: 62 | AI47: 1456 | AJ47: 78 | AK47: 1534
A48: 46 | B48: ERICH ADAMS 2 (WINTER PARK,FL) | C48: 63 | D48: 20 | E48: 55 | F48: 44 | G48: 45 | H48: 57 | I48: 47 | J48: 56 | K48: 61 | L48: 35 | M48: 48 | N48: 52 | O48: 29 | P48: 53 | Q48: 26 | R48: 59 | S48: 62 | T48: 33 | U48: 22 | V48: 41 | W48: 31 | X48: 54 | Y48: 40 | Z48: 58 | AA48: 64 | AB48: 18 | AC48: 46 | AD48: 51 | AE48: 39 | AF48: 49 | AG48: 37 | AH48: 60 | AI48: 1455 | AJ48: 78 | AK48: 1533
A49: 47 | B49: RAYBIK01 (PT ST LUCIE,FL) | C49: 64 | D49: 29 | E49: 45 | F49: 49 | G49: 41 | H49: 55 | I49: 39 | J49: 58 | K49: 62 | L49: 30 | M49: 46 | N49: 50 | O49: 24 | P49: 56 | Q49: 26 | R49: 59 | S49: 61 | T49: 31 | U49: 19 | V49: 51 | W49: 22 | X49: 53 | Y49: 44 | Z49: 60 | AA49: 63 | AB49: 32 | AC49: 48 | AD49: 57 | AE49: 43 | AF49: 52 | AG49: 37 | AH49: 54 | AI49: 1460 | AJ49: 72 | AK49: 1532
A50: 48 | B50: JACK HINNENDAEL (PRESQUE ISLE,WI) | C50: 64 | D50: 32 | E50: 49 | F50: 48 | G50: 41 | H50: 56 | I50: 40 | J50: 57 | K50: 61 | L50: 36 | M50: 52 | N50: 45 | O50: 21 | P50: 53 | Q50: 28 | R50: 60 | S50: 63 | T50: 31 | U50: 18 | V50: 50 | W50: 26 | X50: 58 | Y50: 23 | Z50: 55 | AA50: 62 | AB50: 35 | AC50: 46 | AD50: 51 | AE50: 43 | AF50: 54 | AG50: 38 | AH50: 59 | AI50: 1455 | AJ50: 75 | AK50: 1530
A51: 48 | B51: JOEJOO3 (JENISON,MI) | C51: 58 | D51: 20 | E51: 46 | F51: 53 | G51: 41 | H51: 56 | I51: 40 | J51: 64 | K51: 59 | L51: 38 | M51: 50 | N51: 51 | O51: 25 | P51: 54 | Q51: 28 | R51: 61 | S51: 63 | T51: 21 | U51: 18 | V51: 52 | W51: 24 | X51: 45 | Y51: 36 | Z51: 57 | AA51: 60 | AB51: 39 | AC51: 49 | AD51: 48 | AE51: 42 | AF51: 55 | AG51: 37 | AH51: 62 | AI51: 1452 | AJ51: 78 | AK51: 1530
A52: 50 | B52: BRIAN BROWN (PALATINE,IL) | C52: 53 | D52: 26 | E52: 61 | F52: 43 | G52: 42 | H52: 54 | I52: 39 | J52: 58 | K52: 64 | L52: 30 | M52: 52 | N52: 47 | O52: 33 | P52: 55 | Q52: 24 | R52: 60 | S52: 63 | T52: 37 | U52: 17 | V52: 56 | W52: 18 | X52: 48 | Y52: 29 | Z52: 59 | AA52: 62 | AB52: 34 | AC52: 50 | AD52: 40 | AE52: 44 | AF52: 51 | AG52: 45 | AH52: 57 | AI52: 1451 | AJ52: 78 | AK52: 1529
A53: 50 | B53: ED LORGEREE I (BUFFALO GROVE,IL) | C53: 58 | D53: 34 | E53: 53 | F53: 48 | G53: 35 | H53: 63 | I53: 50 | J53: 46 | K53: 61 | L53: 38 | M53: 52 | N53: 43 | O53: 36 | P53: 57 | Q53: 23 | R53: 55 | S53: 64 | T53: 37 | U53: 21 | V53: 54 | W53: 47 | X53: 49 | Y53: 22 | Z53: 56 | AA53: 62 | AB53: 15 | AC53: 29 | AD53: 59 | AE53: 51 | AF53: 45 | AG53: 28 | AH53: 60 | AI53: 1451 | AJ53: 78 | AK53: 1529
A54: 50 | B54: TIM REDDINGTON (NORWALK,CT) | C54: 63 | D54: 23 | E54: 49 | F54: 50 | G54: 45 | H54: 58 | I54: 41 | J54: 55 | K54: 57 | L54: 32 | M54: 52 | N54: 46 | O54: 22 | P54: 56 | Q54: 36 | R54: 62 | S54: 64 | T54: 28 | U54: 18 | V54: 43 | W54: 21 | X54: 51 | Y54: 34 | Z54: 59 | AA54: 60 | AB54: 37 | AC54: 42 | AD54: 53 | AE54: 39 | AF54: 54 | AG54: 40 | AH54: 61 | AI54: 1451 | AJ54: 78 | AK54: 1529
A55: 53 | B55: CATEY COHEN 2 (ELMHURST,IL) | C55: 61 | D55: 31 | E55: 50 | F55: 57 | G55: 39 | H55: 23 | I55: 45 | J55: 62 | K55: 59 | L55: 26 | M55: 29 | N55: 42 | O55: 32 | P55: 51 | Q55: 38 | R55: 64 | S55: 63 | T55: 30 | U55: 33 | V55: 53 | W55: 43 | X55: 55 | Y55: 35 | Z55: 54 | AA55: 48 | AB55: 22 | AC55: 52 | AD55: 56 | AE55: 58 | AF55: 36 | AG55: 46 | AH55: 60 | AI55: 1453 | AJ55: 75 | AK55: 1528
A56: 54 | B56: KEN PIETRZAK (SAUNDERSTOWN,RI) | C56: 59 | D56: 20 | E56: 52 | F56: 46 | G56: 39 | H56: 61 | I56: 38 | J56: 55 | K56: 60 | L56: 36 | M56: 53 | N56: 47 | O56: 40 | P56: 56 | Q56: 24 | R56: 63 | S56: 64 | T56: 33 | U56: 15 | V56: 48 | W56: 45 | X56: 51 | Y56: 31 | Z56: 58 | AA56: 62 | AB56: 34 | AC56: 32 | AD56: 49 | AE56: 44 | AF56: 54 | AG56: 23 | AH56: 57 | AI56: 1449 | AJ56: 78 | AK56: 1527
A57: 55 | B57: SEAN BURKE (SEVERNA PARK,MD) | C57: 60 | D57: 20 | E57: 47 | F57: 50 | G57: 41 | H57: 63 | I57: 48 | J57: 53 | K57: 58 | L57: 39 | M57: 54 | N57: 46 | O57: 38 | P57: 61 | Q57: 26 | R57: 56 | S57: 64 | T57: 31 | U57: 15 | V57: 44 | W57: 22 | X57: 57 | Y57: 37 | Z57: 55 | AA57: 62 | AB57: 36 | AC57: 43 | AD57: 49 | AE57: 29 | AF57: 51 | AG57: 34 | AH57: 59 | AI57: 1448 | AJ57: 78 | AK57: 1526
A58: 56 | B58: TERRY REDDINGTON (RIDGEFIELD,CT) | C58: 64 | D58: 36 | E58: 57 | F58: 49 | G58: 48 | H58: 53 | I58: 51 | J58: 47 | K58: 58 | L58: 40 | M58: 52 | N58: 39 | O58: 24 | P58: 38 | Q58: 37 | R58: 61 | S58: 62 | T58: 43 | U58: 19 | V58: 56 | W58: 21 | X58: 54 | Y58: 26 | Z58: 59 | AA58: 60 | AB58: 42 | AC58: 33 | AD58: 34 | AE58: 35 | AF58: 55 | AG58: 27 | AH58: 63 | AI58: 1443 | AJ58: 81 | AK58: 1524
A59: 57 | B59: HARRY JAFFE 1 (CHANDLER,AZ) | C59: 63 | D59: 28 | E59: 44 | F59: 51 | G59: 31 | H59: 59 | I59: 52 | J59: 48 | K59: 57 | L59: 33 | M59: 50 | N59: 46 | O59: 30 | P59: 56 | Q59: 26 | R59: 61 | S59: 62 | T59: 35 | U59: 17 | V59: 43 | W59: 22 | X59: 53 | Y59: 37 | Z59: 58 | AA59: 64 | AB59: 27 | AC59: 45 | AD59: 49 | AE59: 54 | AF59: 47 | AG59: 40 | AH59: 60 | AI59: 1448 | AJ59: 75 | AK59: 1523
A60: 58 | B60: GERRY SEXTON (RIDGEFIELD,CT) | C60: 56 | D60: 32 | E60: 58 | F60: 34 | G60: 30 | H60: 61 | I60: 36 | J60: 55 | K60: 54 | L60: 37 | M60: 57 | N60: 38 | O60: 39 | P60: 53 | Q60: 25 | R60: 63 | S60: 64 | T60: 17 | U60: 18 | V60: 49 | W60: 19 | X60: 50 | Y60: 45 | Z60: 59 | AA60: 60 | AB60: 44 | AC60: 43 | AD60: 51 | AE60: 52 | AF60: 42 | AG60: 41 | AH60: 62 | AI60: 1444 | AJ60: 78 | AK60: 1522
A61: 58 | B61: MIKE JACOBUS (NEW ALBANY,OH) | C61: 60 | D61: 43 | E61: 32 | F61: 48 | G61: 25 | H61: 55 | I61: 44 | J61: 63 | K61: 59 | L61: 42 | M61: 31 | N61: 47 | O61: 35 | P61: 53 | Q61: 38 | R61: 61 | S61: 62 | T61: 41 | U61: 50 | V61: 46 | W61: 34 | X61: 57 | Y61: 23 | Z61: 56 | AA61: 64 | AB61: 40 | AC61: 29 | AD61: 45 | AE61: 28 | AF61: 54 | AG61: 24 | AH61: 58 | AI61: 1447 | AJ61: 75 | AK61: 1522
A62: 58 | B62: WIMPY (WOOD DALE,IL) | C62: 63 | D62: 20 | E62: 51 | F62: 44 | G62: 32 | H62: 57 | I62: 38 | J62: 56 | K62: 59 | L62: 43 | M62: 45 | N62: 53 | O62: 39 | P62: 52 | Q62: 18 | R62: 62 | S62: 64 | T62: 33 | U62: 21 | V62: 55 | W62: 23 | X62: 50 | Y62: 41 | Z62: 58 | AA62: 60 | AB62: 27 | AC62: 49 | AD62: 48 | AE62: 47 | AF62: 54 | AG62: 24 | AH62: 61 | AI62: 1447 | AJ62: 75 | AK62: 1522
A63: 61 | B63: BRADY SACK II (GRAND RAPIDS,MI) | C63: 63 | D63: 35 | E63: 46 | F63: 47 | G63: 39 | H63: 58 | I63: 53 | J63: 52 | K63: 56 | L63: 36 | M63: 49 | N63: 45 | O63: 30 | P63: 57 | Q63: 24 | R63: 61 | S63: 64 | T63: 25 | U63: 12 | V63: 51 | W63: 22 | X63: 55 | Y63: 31 | Z63: 59 | AA63: 62 | AB63: 27 | AC63: 50 | AD63: 44 | AE63: 41 | AF63: 54 | AG63: 37 | AH63: 60 | AI63: 1445 | AJ63: 75 | AK63: 1520
A64: 62 | B64: CATEY COHEN 1 (ELMHURST,IL) | C64: 61 | D64: 32 | E64: 47 | F64: 56 | G64: 42 | H64: 52 | I64: 44 | J64: 62 | K64: 59 | L64: 15 | M64: 39 | N64: 49 | O64: 13 | P64: 54 | Q64: 38 | R64: 63 | S64: 64 | T64: 30 | U64: 25 | V64: 50 | W64: 31 | X64: 53 | Y64: 35 | Z64: 58 | AA64: 60 | AB64: 22 | AC64: 48 | AD64: 55 | AE64: 51 | AF64: 36 | AG64: 43 | AH64: 57 | AI64: 1444 | AJ64: 75 | AK64: 1519
A65: 62 | B65: ERICH ADAMS 1 (WINTER PARK,FL) | C65: 55 | D65: 20 | E65: 57 | F65: 44 | G65: 45 | H65: 56 | I65: 47 | J65: 61 | K65: 59 | L65: 35 | M65: 52 | N65: 48 | O65: 29 | P65: 53 | Q65: 26 | R65: 63 | S65: 64 | T65: 33 | U65: 22 | V65: 50 | W65: 31 | X65: 54 | Y65: 40 | Z65: 58 | AA65: 60 | AB65: 18 | AC65: 51 | AD65: 46 | AE65: 32 | AF65: 49 | AG65: 27 | AH65: 62 | AI65: 1447 | AJ65: 72 | AK65: 1519
A66: 62 | B66: K ADAMS 3 (SPRING LAKE,MI) | C66: 56 | D66: 22 | E66: 57 | F66: 46 | G66: 45 | H66: 52 | I66: 42 | J66: 62 | K66: 50 | L66: 43 | M66: 60 | N66: 47 | O66: 38 | P66: 63 | Q66: 23 | R66: 54 | S66: 64 | T66: 39 | U66: 18 | V66: 48 | W66: 24 | X66: 51 | Y66: 30 | Z66: 59 | AA66: 61 | AB66: 36 | AC66: 32 | AD66: 55 | AE66: 31 | AF66: 53 | AG66: 28 | AH66: 58 | AI66: 1447 | AJ66: 72 | AK66: 1519
A67: 62 | B67: ORANGE&BLUE NEEDED THE $ (CHICAGO,IL) | C67: 63 | D67: 33 | E67: 49 | F67: 48 | G67: 32 | H67: 53 | I67: 23 | J67: 60 | K67: 59 | L67: 24 | M67: 51 | N67: 46 | O67: 40 | P67: 55 | Q67: 30 | R67: 61 | S67: 64 | T67: 34 | U67: 21 | V67: 47 | W67: 29 | X67: 54 | Y67: 43 | Z67: 57 | AA67: 62 | AB67: 25 | AC67: 52 | AD67: 45 | AE67: 42 | AF67: 56 | AG67: 31 | AH67: 58 | AI67: =(SUM(C67:AH67)) -> 1447 | AJ67: =COUNTIF(C67:AH67,">32")*3 -> 72 | AK67: =AI67+AJ67 -> 1519
A68: 66 | B68: AL KLEEN11 (DAVIS,IL) | C68: 63 | D68: 21 | E68: 51 | F68: 50 | G68: 35 | H68: 55 | I68: 37 | J68: 58 | K68: 60 | L68: 38 | M68: 49 | N68: 39 | O68: 28 | P68: 61 | Q68: 41 | R68: 56 | S68: 59 | T68: 25 | U68: 19 | V68: 54 | W68: 24 | X68: 53 | Y68: 32 | Z68: 62 | AA68: 64 | AB68: 22 | AC68: 52 | AD68: 46 | AE68: 43 | AF68: 47 | AG68: 42 | AH68: 57 | AI68: 1443 | AJ68: 75 | AK68: 1518
A69: 66 | B69: KIDWC (ARLINGTON HEIGHTS,IL) | C69: 64 | D69: 33 | E69: 52 | F69: 46 | G69: 31 | H69: 55 | I69: 57 | J69: 48 | K69: 62 | L69: 35 | M69: 45 | N69: 51 | O69: 39 | P69: 50 | Q69: 29 | R69: 58 | S69: 56 | T69: 38 | U69: 20 | V69: 43 | W69: 26 | X69: 54 | Y69: 42 | Z69: 59 | AA69: 63 | AB69: 23 | AC69: 32 | AD69: 47 | AE69: 44 | AF69: 53 | AG69: 28 | AH69: 60 | AI69: 1443 | AJ69: 75 | AK69: 1518
B70: AVERAGE | C70: 61 | D70: 30 | E70: 50 | F70: 47 | G70: 36 | H70: 55 | I70: 42 | J70: 55 | K70: 59 | L70: 34 | M70: 50 | N70: 45 | O70: 31 | P70: 54 | Q70: 29 | R70: 60 | S70: 62 | T70: 33 | U70: 20 | V70: 50 | W70: 27 | X70: 52 | Y70: 35 | Z70: 57 | AA70: 61 | AB70: 30 | AC70: 42 | AD70: 46 | AE70: 42 | AF70: 52 | AG70: 34 | AH70: 58 | AI70: 1439 | AJ70: 78 | AK70: 1517
A71: 68 | B71: MATT STEHOUWER 2 (SPRING LAKE,MI) | C71: 63 | D71: 47 | E71: 56 | F71: 42 | G71: 22 | H71: 49 | I71: 44 | J71: 58 | K71: 59 | L71: 40 | M71: 50 | N71: 33 | O71: 39 | P71: 54 | Q71: 27 | R71: 62 | S71: 64 | T71: 35 | U71: 24 | V71: 51 | W71: 13 | X71: 48 | Y71: 37 | Z71: 57 | AA71: 61 | AB71: 23 | AC71: 53 | AD71: 41 | AE71: 46 | AF71: 55 | AG71: 26 | AH71: 60 | AI71: 1439 | AJ71: 78 | AK71: 1517
A72: 69 | B72: JOEJOO1 (JENISON,MI) | C72: 63 | D72: 41 | E72: 49 | F72: 54 | G72: 26 | H72: 44 | I72: 46 | J72: 58 | K72: 57 | L72: 24 | M72: 51 | N72: 20 | O72: 35 | P72: 55 | Q72: 38 | R72: 62 | S72: 61 | T72: 16 | U72: 22 | V72: 53 | W72: 34 | X72: 43 | Y72: 47 | Z72: 60 | AA72: 64 | AB72: 40 | AC72: 52 | AD72: 27 | AE72: 33 | AF72: 56 | AG72: 48 | AH72: 59 | AI72: 1438 | AJ72: 78 | AK72: 1516
A73: 70 | B73: K ADAMS 2 (SPRING LAKE,MI) | C73: 56 | D73: 22 | E73: 57 | F73: 46 | G73: 45 | H73: 62 | I73: 42 | J73: 52 | K73: 60 | L73: 43 | M73: 50 | N73: 47 | O73: 38 | P73: 54 | Q73: 23 | R73: 63 | S73: 64 | T73: 39 | U73: 18 | V73: 48 | W73: 24 | X73: 51 | Y73: 30 | Z73: 59 | AA73: 55 | AB73: 29 | AC73: 32 | AD73: 61 | AE73: 34 | AF73: 58 | AG73: 28 | AH73: 53 | AI73: 1443 | AJ73: 72 | AK73: 1515
A74: 71 | B74: TAPCITY (BURBANK,CA) | C74: 60 | D74: 37 | E74: 51 | F74: 50 | G74: 34 | H74: 52 | I74: 38 | J74: 61 | K74: 63 | L74: 39 | M74: 56 | N74: 32 | O74: 42 | P74: 53 | Q74: 44 | R74: 59 | S74: 64 | T74: 41 | U74: 13 | V74: 55 | W74: 16 | X74: 48 | Y74: 28 | Z74: 58 | AA74: 62 | AB74: 25 | AC74: 47 | AD74: 22 | AE74: 49 | AF74: 54 | AG74: 29 | AH74: 57 | AI74: 1439 | AJ74: 75 | AK74: 1514
A75: 71 | B75: TERRY REDDINGTON 2 (RIDGEFIELD,CT) | C75: 63 | D75: 37 | E75: 54 | F75: 57 | G75: 48 | H75: 51 | I75: 36 | J75: 49 | K75: 62 | L75: 23 | M75: 52 | N75: 31 | O75: 46 | P75: 53 | Q75: 24 | R75: 60 | S75: 64 | T75: 26 | U75: 16 | V75: 40 | W75: 41 | X75: 58 | Y75: 55 | Z75: 34 | AA75: 61 | AB75: 42 | AC75: 50 | AD75: 29 | AE75: 38 | AF75: 59 | AG75: 33 | AH75: 44 | AI75: 1436 | AJ75: 78 | AK75: 1514
A76: 73 | B76: ADRIENNE COHEN (ELMHURST,IL) | C76: 62 | D76: 26 | E76: 47 | F76: 53 | G76: 43 | H76: 59 | I76: 36 | J76: 56 | K76: 58 | L76: 55 | M76: 52 | N76: 45 | O76: 29 | P76: 48 | Q76: 32 | R76: 63 | S76: 64 | T76: 24 | U76: 11 | V76: 46 | W76: 23 | X76: 50 | Y76: 38 | Z76: 57 | AA76: 61 | AB76: 40 | AC76: 28 | AD76: 49 | AE76: 35 | AF76: 51 | AG76: 37 | AH76: 60 | AI76: 1438 | AJ76: 75 | AK76: 1513
A77: 73 | B77: JERRY VANDERMOLEN (ELMHURST,IL) | C77: 62 | D77: 25 | E77: 52 | F77: 48 | G77: 42 | H77: 51 | I77: 45 | J77: 58 | K77: 64 | L77: 34 | M77: 54 | N77: 39 | O77: 22 | P77: 53 | Q77: 24 | R77: 59 | S77: 63 | T77: 37 | U77: 18 | V77: 50 | W77: 16 | X77: 55 | Y77: 40 | Z77: 60 | AA77: 57 | AB77: 35 | AC77: 41 | AD77: 49 | AE77: 33 | AF77: 61 | AG77: 32 | AH77: 56 | AI77: 1435 | AJ77: 78 | AK77: 1513
A78: 73 | B78: SCHEUERMAN1 (OAK PARK,IL) | C78: 63 | D78: 24 | E78: 50 | F78: 43 | G78: 31 | H78: 57 | I78: 53 | J78: 44 | K78: 59 | L78: 33 | M78: 52 | N78: 42 | O78: 39 | P78: 61 | Q78: 20 | R78: 56 | S78: 62 | T78: 35 | U78: 15 | V78: 46 | W78: 30 | X78: 54 | Y78: 37 | Z78: 60 | AA78: 64 | AB78: 19 | AC78: 49 | AD78: 48 | AE78: 47 | AF78: 55 | AG78: 32 | AH78: 58 | AI78: 1438 | AJ78: 75 | AK78: 1513
A79: 76 | B79: LEWIS COLLIER REALE (LEXINGTON PARK,MD) | C79: 62 | D79: 34 | E79: 53 | F79: 44 | G79: 48 | H79: 56 | I79: 35 | J79: 59 | K79: 58 | L79: 29 | M79: 50 | N79: 38 | O79: 9 | P79: 47 | Q79: 28 | R79: 54 | S79: 61 | T79: 37 | U79: 21 | V79: 51 | W79: 42 | X79: 57 | Y79: 33 | Z79: 55 | AA79: 60 | AB79: 25 | AC79: 41 | AD79: 49 | AE79: 40 | AF79: 63 | AG79: 39 | AH79: 52 | AI79: 1430 | AJ79: 81 | AK79: 1511
A80: 76 | B80: PAUL ASTORINO (MOUNT PROSPECT,IL) | C80: 63 | D80: 33 | E80: 52 | F80: 48 | G80: 41 | H80: 51 | I80: 32 | J80: 59 | K80: 60 | L80: 24 | M80: 43 | N80: 53 | O80: 46 | P80: 55 | Q80: 19 | R80: 61 | S80: 62 | T80: 34 | U80: 22 | V80: 47 | W80: 15 | X80: 58 | Y80: 39 | Z80: 54 | AA80: 64 | AB80: 36 | AC80: 42 | AD80: 49 | AE80: 31 | AF80: 57 | AG80: 30 | AH80: 56 | AI80: 1436 | AJ80: 75 | AK80: 1511
A81: 78 | B81: DAVID INGLES 3 (GREENVILLE,MI) | C81: 56 | D81: 32 | E81: 58 | F81: 47 | G81: 22 | H81: 61 | I81: 54 | J81: 48 | K81: 53 | L81: 23 | M81: 57 | N81: 44 | O81: 43 | P81: 52 | Q81: 20 | R81: 64 | S81: 55 | T81: 24 | U81: 11 | V81: 62 | W81: 30 | X81: 45 | Y81: 41 | Z81: 59 | AA81: 60 | AB81: 33 | AC81: 50 | AD81: 40 | AE81: 39 | AF81: 51 | AG81: 38 | AH81: 63 | AI81: 1435 | AJ81: 75 | AK81: 1510
A82: 79 | B82: DEVIN WARNKEN (CINCINNATI,OH) | C82: 56 | D82: 23 | E82: 60 | F82: 48 | G82: 44 | H82: 54 | I82: 47 | J82: 64 | K82: 59 | L82: 39 | M82: 40 | N82: 32 | O82: 50 | P82: 45 | Q82: 19 | R82: 61 | S82: 55 | T82: 42 | U82: 33 | V82: 63 | W82: 35 | X82: 52 | Y82: 46 | Z82: 57 | AA82: 62 | AB82: 20 | AC82: 22 | AD82: 51 | AE82: 27 | AF82: 58 | AG82: 17 | AH82: 53 | AI82: 1434 | AJ82: 75 | AK82: 1509
A83: 79 | B83: SCHEUERMAN2 (OAK PARK,IL) | C83: 63 | D83: 25 | E83: 54 | F83: 40 | G83: 35 | H83: 57 | I83: 48 | J83: 52 | K83: 61 | L83: 31 | M83: 51 | N83: 42 | O83: 39 | P83: 60 | Q83: 20 | R83: 56 | S83: 62 | T83: 33 | U83: 15 | V83: 45 | W83: 27 | X83: 55 | Y83: 38 | Z83: 59 | AA83: 64 | AB83: 19 | AC83: 49 | AD83: 46 | AE83: 47 | AF83: 53 | AG83: 30 | AH83: 58 | AI83: 1434 | AJ83: 75 | AK83: 1509
A84: 81 | B84: PAUL PARKS I (NORTH LAS VEGAS,NV) | C84: 63 | D84: 22 | E84: 53 | F84: 41 | G84: 23 | H84: 59 | I84: 50 | J84: 44 | K84: 58 | L84: 43 | M84: 54 | N84: 48 | O84: 28 | P84: 55 | Q84: 33 | R84: 62 | S84: 64 | T84: 27 | U84: 20 | V84: 52 | W84: 35 | X84: 49 | Y84: 31 | Z84: 57 | AA84: 60 | AB84: 26 | AC84: 51 | AD84: 47 | AE84: 40 | AF84: 56 | AG84: 24 | AH84: 61 | AI84: 1436 | AJ84: 72 | AK84: 1508
A85: 82 | B85: CHRIS GRANDE1 (IN - MISHAWAKA,IN) | C85: 64 | D85: 36 | E85: 33 | F85: 54 | G85: 48 | H85: 60 | I85: 47 | J85: 53 | K85: 61 | L85: 24 | M85: 45 | N85: 49 | O85: 26 | P85: 56 | Q85: 27 | R85: 58 | S85: 63 | T85: 35 | U85: 15 | V85: 42 | W85: 29 | X85: 41 | Y85: 40 | Z85: 59 | AA85: 62 | AB85: 30 | AC85: 39 | AD85: 51 | AE85: 38 | AF85: 50 | AG85: 37 | AH85: 57 | AI85: 1429 | AJ85: 78 | AK85: 1507
A86: 82 | B86: DOUG SCOTT (GREEN LAKE,WI) | C86: 64 | D86: 21 | E86: 48 | F86: 49 | G86: 41 | H86: 57 | I86: 52 | J86: 45 | K86: 60 | L86: 33 | M86: 54 | N86: 32 | O86: 40 | P86: 61 | Q86: 24 | R86: 56 | S86: 63 | T86: 35 | U86: 18 | V86: 47 | W86: 17 | X86: 51 | Y86: 46 | Z86: 59 | AA86: 62 | AB86: 23 | AC86: 50 | AD86: 30 | AE86: 39 | AF86: 58 | AG86: 42 | AH86: 55 | AI86: 1432 | AJ86: 75 | AK86: 1507
A87: 84 | B87: RYAN ROZYCKI (MYRTLE BEACH,SC) | C87: 55 | D87: 21 | E87: 60 | F87: 46 | G87: 32 | H87: 54 | I87: 44 | J87: 61 | K87: 53 | L87: 30 | M87: 59 | N87: 41 | O87: 42 | P87: 52 | Q87: 28 | R87: 63 | S87: 56 | T87: 22 | U87: 16 | V87: 58 | W87: 19 | X87: 49 | Y87: 35 | Z87: 64 | AA87: 57 | AB87: 36 | AC87: 50 | AD87: 37 | AE87: 38 | AF87: 51 | AG87: 39 | AH87: 62 | AI87: 1430 | AJ87: 75 | AK87: 1505
A88: 85 | B88: CHERI BJERKAN (ELMHURST,IL) | C88: 63 | D88: 24 | E88: 48 | F88: 50 | G88: 32 | H88: 58 | I88: 46 | J88: 55 | K88: 59 | L88: 34 | M88: 45 | N88: 49 | O88: 23 | P88: 62 | Q88: 38 | R88: 56 | S88: 60 | T88: 37 | U88: 14 | V88: 44 | W88: 21 | X88: 47 | Y88: 25 | Z88: 61 | AA88: 64 | AB88: 36 | AC88: 52 | AD88: 31 | AE88: 41 | AF88: 54 | AG88: 43 | AH88: 57 | AI88: 1429 | AJ88: 75 | AK88: 1504
A89: 85 | B89: DAN LAMB (LINDENHURST,IL) | C89: 60 | D89: 37 | E89: 52 | F89: 29 | G89: 21 | H89: 53 | I89: 45 | J89: 61 | K89: 57 | L89: 25 | M89: 49 | N89: 48 | O89: 33 | P89: 56 | Q89: 24 | R89: 64 | S89: 58 | T89: 42 | U89: 34 | V89: 63 | W89: 18 | X89: 50 | Y89: 26 | Z89: 55 | AA89: 62 | AB89: 27 | AC89: 51 | AD89: 43 | AE89: 46 | AF89: 54 | AG89: 30 | AH89: 59 | AI89: 1432 | AJ89: 72 | AK89: 1504
A90: 85 | B90: DAVID INGLES 1 (GREENVILLE,MI) | C90: 63 | D90: 39 | E90: 56 | F90: 47 | G90: 19 | H90: 57 | I90: 52 | J90: 48 | K90: 60 | L90: 22 | M90: 55 | N90: 43 | O90: 24 | P90: 54 | Q90: 35 | R90: 62 | S90: 64 | T90: 37 | U90: 12 | V90: 53 | W90: 27 | X90: 45 | Y90: 40 | Z90: 58 | AA90: 59 | AB90: 20 | AC90: 51 | AD90: 42 | AE90: 49 | AF90: 44 | AG90: 31 | AH90: 61 | AI90: 1429 | AJ90: 75 | AK90: 1504
A91: 88 | B91: JOE JOO 4 JW (JENISON,MI) | C91: 63 | D91: 32 | E91: 56 | F91: 47 | G91: 20 | H91: 57 | I91: 51 | J91: 41 | K91: 58 | L91: 33 | M91: 53 | N91: 45 | O91: 34 | P91: 52 | Q91: 22 | R91: 61 | S91: 59 | T91: 39 | U91: 15 | V91: 46 | W91: 43 | X91: 62 | Y91: 48 | Z91: 49 | AA91: 64 | AB91: 38 | AC91: 50 | AD91: 27 | AE91: 26 | AF91: 54 | AG91: 23 | AH91: 60 | AI91: 1428 | AJ91: 75 | AK91: 1503
A92: 89 | B92: BRADYSACK1 (GRAND RAPIDS,MI) | C92: 62 | D92: 39 | E92: 36 | F92: 53 | G92: 37 | H92: 55 | I92: 54 | J92: 48 | K92: 60 | L92: 35 | M92: 50 | N92: 43 | O92: 46 | P92: 56 | Q92: 19 | R92: 61 | S92: 63 | T92: 29 | U92: 16 | V92: 51 | W92: 20 | X92: 58 | Y92: 42 | Z92: 59 | AA92: 64 | AB92: 31 | AC92: 52 | AD92: 33 | AE92: 30 | AF92: 41 | AG92: 26 | AH92: 57 | AI92: 1426 | AJ92: 75 | AK92: 1501
A93: 89 | B93: CHRIS SEXTON (DANBURY,CT) | C93: 64 | D93: 33 | E93: 34 | F93: 54 | G93: 41 | H93: 56 | I93: 43 | J93: 48 | K93: 57 | L93: 36 | M93: 31 | N93: 42 | O93: 26 | P93: 52 | Q93: 32 | R93: 59 | S93: 63 | T93: 30 | U93: 19 | V93: 50 | W93: 23 | X93: 62 | Y93: 38 | Z93: 61 | AA93: 60 | AB93: 28 | AC93: 45 | AD93: 55 | AE93: 51 | AF93: 40 | AG93: 35 | AH93: 58 | AI93: 1426 | AJ93: 75 | AK93: 1501
A94: 89 | B94: EHOOTER (LAKE STEVENS,WA) | C94: 62 | D94: 40 | E94: 51 | F94: 46 | G94: 30 | H94: 58 | I94: 49 | J94: 56 | K94: 52 | L94: 25 | M94: 43 | N94: 57 | O94: 11 | P94: 45 | Q94: 27 | R94: 63 | S94: 64 | T94: 39 | U94: 20 | V94: 47 | W94: 26 | X94: 48 | Y94: 41 | Z94: 59 | AA94: 60 | AB94: 35 | AC94: 50 | AD94: 42 | AE94: 33 | AF94: 55 | AG94: 31 | AH94: 61 | AI94: 1426 | AJ94: 75 | AK94: 1501
A95: 89 | B95: HARMON I (CHICAGO,IL) | C95: 57 | D95: 23 | E95: 33 | F95: 56 | G95: 38 | H95: 49 | I95: 40 | J95: 64 | K95: 60 | L95: 24 | M95: 53 | N95: 41 | O95: 29 | P95: 48 | Q95: 44 | R95: 61 | S95: 63 | T95: 25 | U95: 28 | V95: 50 | W95: 37 | X95: 58 | Y95: 30 | Z95: 46 | AA95: 62 | AB95: 26 | AC95: 34 | AD95: 51 | AE95: 36 | AF95: 59 | AG95: 54 | AH95: 47 | AI95: 1426 | AJ95: 75 | AK95: 1501
A96: 89 | B96: JEFF SEREMAK #2 (VILLA PARK,IL) | C96: 60 | D96: 37 | E96: 46 | F96: 52 | G96: 30 | H96: 54 | I96: 42 | J96: 61 | K96: 63 | L96: 25 | M96: 32 | N96: 50 | O96: 21 | P96: 48 | Q96: 36 | R96: 59 | S96: 64 | T96: 26 | U96: 17 | V96: 47 | W96: 20 | X96: 55 | Y96: 43 | Z96: 58 | AA96: 62 | AB96: 38 | AC96: 45 | AD96: 53 | AE96: 31 | AF96: 57 | AG96: 41 | AH96: 56 | AI96: 1429 | AJ96: 72 | AK96: 1501
A97: 94 | B97: EEYORE (PRESQUE ISLE,WI) | C97: 64 | D97: 32 | E97: 48 | F97: 49 | G97: 41 | H97: 56 | I97: 40 | J97: 57 | K97: 61 | L97: 36 | M97: 52 | N97: 45 | O97: 21 | P97: 53 | Q97: 28 | R97: 60 | S97: 63 | T97: 31 | U97: 15 | V97: 47 | W97: 26 | X97: 55 | Y97: 23 | Z97: 58 | AA97: 54 | AB97: 22 | AC97: 38 | AD97: 59 | AE97: 51 | AF97: 46 | AG97: 35 | AH97: 62 | AI97: 1428 | AJ97: 72 | AK97: 1500
A98: 94 | B98: PAUL CASTINO (TEGA CAY,SC) | C98: 60 | D98: 31 | E98: 50 | F98: 48 | G98: 43 | H98: 61 | I98: 38 | J98: 56 | K98: 59 | L98: 32 | M98: 51 | N98: 46 | O98: 24 | P98: 55 | Q98: 40 | R98: 63 | S98: 64 | T98: 30 | U98: 18 | V98: 45 | W98: 22 | X98: 44 | Y98: 28 | Z98: 58 | AA98: 62 | AB98: 29 | AC98: 47 | AD98: 49 | AE98: 41 | AF98: 54 | AG98: 26 | AH98: 57 | AI98: 1431 | AJ98: 69 | AK98: 1500
A99: 96 | B99: HARRY JAFFE 2 (CHANDLER,AZ) | C99: 63 | D99: 28 | E99: 44 | F99: 51 | G99: 31 | H99: 59 | I99: 50 | J99: 48 | K99: 52 | L99: 33 | M99: 55 | N99: 46 | O99: 30 | P99: 61 | Q99: 26 | R99: 56 | S99: 64 | T99: 35 | U99: 17 | V99: 43 | W99: 22 | X99: 54 | Y99: 37 | Z99: 58 | AA99: 62 | AB99: 27 | AC99: 32 | AD99: 45 | AE99: 47 | AF99: 53 | AG99: 40 | AH99: 57 | AI99: =(SUM(C99:AH99)) -> 1426 | AJ99: =COUNTIF(C99:AH99,">32")*3 -> 72 | AK99: =AI99+AJ99 -> 1498
A100: 96 | B100: LEWIS COLLIER ACC (LEXINGTON PARK,MD) | C100: 62 | D100: 34 | E100: 53 | F100: 44 | G100: 59 | H100: 48 | I100: 35 | J100: 56 | K100: 45 | L100: 29 | M100: 50 | N100: 38 | O100: 9 | P100: 47 | Q100: 28 | R100: 54 | S100: 61 | T100: 37 | U100: 21 | V100: 51 | W100: 33 | X100: 57 | Y100: 55 | Z100: 42 | AA100: 60 | AB100: 25 | AC100: 41 | AD100: 49 | AE100: 40 | AF100: 63 | AG100: 52 | AH100: 39 | AI100: 1417 | AJ100: 81 | AK100: 1498
A101: 96 | B101: MATT PALUMBO (WEST DUNDEE,IL) | C101: 61 | D101: 35 | E101: 54 | F101: 49 | G101: 29 | H101: 59 | I101: 38 | J101: 55 | K101: 63 | L101: 22 | M101: 47 | N101: 42 | O101: 34 | P101: 53 | Q101: 20 | R101: 57 | S101: 64 | T101: 40 | U101: 33 | V101: 52 | W101: 26 | X101: 48 | Y101: 41 | Z101: 58 | AA101: 60 | AB101: 21 | AC101: 25 | AD101: 46 | AE101: 45 | AF101: 56 | AG101: 28 | AH101: 62 | AI101: 1423 | AJ101: 75 | AK101: 1498
A102: 96 | B102: SUE MCK (MISHAWAKA,IN) | C102: 63 | D102: 19 | E102: 51 | F102: 47 | G102: 46 | H102: 57 | I102: 29 | J102: 56 | K102: 61 | L102: 27 | M102: 41 | N102: 49 | O102: 23 | P102: 58 | Q102: 44 | R102: 55 | S102: 64 | T102: 24 | U102: 22 | V102: 50 | W102: 37 | X102: 54 | Y102: 38 | Z102: 60 | AA102: 62 | AB102: 42 | AC102: 30 | AD102: 52 | AE102: 25 | AF102: 59 | AG102: 31 | AH102: 53 | AI102: 1429 | AJ102: 69 | AK102: 1498
A103: 100 | B103: JOE ENZYME (SAUNDERSTOWN,RI) | C103: 58 | D103: 20 | E103: 46 | F103: 52 | G103: 26 | H103: 61 | I103: 38 | J103: 55 | K103: 59 | L103: 25 | M103: 53 | N103: 47 | O103: 40 | P103: 64 | Q103: 37 | R103: 56 | S103: 60 | T103: 30 | U103: 15 | V103: 50 | W103: 27 | X103: 51 | Y103: 35 | Z103: 63 | AA103: 62 | AB103: 28 | AC103: 42 | AD103: 49 | AE103: 44 | AF103: 57 | AG103: 21 | AH103: 54 | AI103: 1425 | AJ103: 72 | AK103: 1497
A104: 101 | B104: SARKIS SHIRINIAN (RIVER VALE,NJ) | C104: 57 | D104: 24 | E104: 59 | F104: 48 | G104: 30 | H104: 62 | I104: 39 | J104: 53 | K104: 52 | L104: 44 | M104: 58 | N104: 49 | O104: 29 | P104: 55 | Q104: 27 | R104: 63 | S104: 64 | T104: 26 | U104: 17 | V104: 50 | W104: 31 | X104: 46 | Y104: 37 | Z104: 56 | AA104: 61 | AB104: 25 | AC104: 32 | AD104: 34 | AE104: 45 | AF104: 51 | AG104: 38 | AH104: 60 | AI104: 1422 | AJ104: 69 | AK104: 1491
A105: 102 | B105: ROS60007#1 (ELMHURST,IL) | C105: 64 | D105: 29 | E105: 55 | F105: 48 | G105: 45 | H105: 54 | I105: 23 | J105: 60 | K105: 62 | L105: 32 | M105: 42 | N105: 51 | O105: 21 | P105: 49 | Q105: 24 | R105: 57 | S105: 61 | T105: 30 | U105: 18 | V105: 50 | W105: 27 | X105: 53 | Y105: 37 | Z105: 58 | AA105: 63 | AB105: 34 | AC105: 56 | AD105: 41 | AE105: 39 | AF105: 52 | AG105: 26 | AH105: 59 | AI105: 1420 | AJ105: 69 | AK105: 1489
A106: 103 | B106: DAN KELLY#2 (FRANKFORT,IL) | C106: 60 | D106: 25 | E106: 54 | F106: 47 | G106: 37 | H106: 63 | I106: 50 | J106: 42 | K106: 58 | L106: 35 | M106: 52 | N106: 44 | O106: 26 | P106: 61 | Q106: 30 | R106: 57 | S106: 62 | T106: 32 | U106: 15 | V106: 43 | W106: 16 | X106: 48 | Y106: 23 | Z106: 56 | AA106: 59 | AB106: 38 | AC106: 51 | AD106: 46 | AE106: 29 | AF106: 53 | AG106: 39 | AH106: 64 | AI106: 1415 | AJ106: 72 | AK106: 1487
A107: 103 | B107: MICHAEL RUSSO II (BELMONT,MI) | C107: 64 | D107: 22 | E107: 50 | F107: 45 | G107: 30 | H107: 57 | I107: 36 | J107: 55 | K107: 62 | L107: 32 | M107: 51 | N107: 44 | O107: 29 | P107: 54 | Q107: 35 | R107: 60 | S107: 59 | T107: 20 | U107: 18 | V107: 52 | W107: 28 | X107: 48 | Y107: 37 | Z107: 61 | AA107: 63 | AB107: 19 | AC107: 47 | AD107: 42 | AE107: 43 | AF107: 56 | AG107: 38 | AH107: 58 | AI107: 1415 | AJ107: 72 | AK107: 1487
A108: 105 | B108: ROS60007#2 (ROSELLE,IL) | C108: 62 | D108: 29 | E108: 55 | F108: 48 | G108: 45 | H108: 54 | I108: 23 | J108: 60 | K108: 64 | L108: 31 | M108: 38 | N108: 51 | O108: 21 | P108: 41 | Q108: 24 | R108: 57 | S108: 58 | T108: 32 | U108: 27 | V108: 50 | W108: 28 | X108: 53 | Y108: 30 | Z108: 61 | AA108: 59 | AB108: 33 | AC108: 56 | AD108: 49 | AE108: 40 | AF108: 52 | AG108: 26 | AH108: 63 | AI108: 1420 | AJ108: 66 | AK108: 1486
A109: 106 | B109: ASH (PORTLAND,OR) | C109: 63 | D109: 43 | E109: 55 | F109: 45 | G109: 25 | H109: 49 | I109: 26 | J109: 57 | K109: 60 | L109: 36 | M109: 54 | N109: 37 | O109: 29 | P109: 44 | Q109: 23 | R109: 61 | S109: 64 | T109: 47 | U109: 19 | V109: 51 | W109: 13 | X109: 56 | Y109: 24 | Z109: 58 | AA109: 59 | AB109: 38 | AC109: 33 | AD109: 48 | AE109: 53 | AF109: 50 | AG109: 31 | AH109: 62 | AI109: 1413 | AJ109: 72 | AK109: 1485
A110: 106 | B110: ED LORGEREE II (BUFFALO GROVE,IL) | C110: 56 | D110: 35 | E110: 61 | F110: 48 | G110: 27 | H110: 57 | I110: 38 | J110: 51 | K110: 64 | L110: 23 | M110: 33 | N110: 50 | O110: 42 | P110: 55 | Q110: 18 | R110: 59 | S110: 63 | T110: 22 | U110: 16 | V110: 47 | W110: 30 | X110: 45 | Y110: 40 | Z110: 58 | AA110: 60 | AB110: 28 | AC110: 44 | AD110: 53 | AE110: 37 | AF110: 52 | AG110: 36 | AH110: 62 | AI110: 1410 | AJ110: 75 | AK110: 1485
A111: 106 | B111: MATT STEHOUWER 1 (SPRING LAKE,MI) | C111: 63 | D111: 29 | E111: 56 | F111: 48 | G111: 20 | H111: 47 | I111: 44 | J111: 57 | K111: 61 | L111: 34 | M111: 52 | N111: 45 | O111: 28 | P111: 55 | Q111: 24 | R111: 60 | S111: 62 | T111: 33 | U111: 16 | V111: 51 | W111: 46 | X111: 53 | Y111: 43 | Z111: 58 | AA111: 64 | AB111: 35 | AC111: 23 | AD111: 27 | AE111: 40 | AF111: 54 | AG111: 26 | AH111: 59 | AI111: 1413 | AJ111: 72 | AK111: 1485
A112: 109 | B112: DAN SHIVE 2 (WINFIELD,IL) | C112: 60 | D112: 32 | E112: 50 | F112: 39 | G112: 16 | H112: 52 | I112: 40 | J112: 64 | K112: 61 | L112: 38 | M112: 51 | N112: 45 | O112: 27 | P112: 49 | Q112: 23 | R112: 59 | S112: 63 | T112: 30 | U112: 15 | V112: 44 | W112: 29 | X112: 53 | Y112: 46 | Z112: 57 | AA112: 62 | AB112: 43 | AC112: 28 | AD112: 55 | AE112: 47 | AF112: 56 | AG112: 22 | AH112: 58 | AI112: 1414 | AJ112: 69 | AK112: 1483
A113: 110 | B113: JOE JOO 5 KV (JENISON,MI) | C113: 64 | D113: 27 | E113: 55 | F113: 47 | G113: 45 | H113: 59 | I113: 32 | J113: 56 | K113: 62 | L113: 40 | M113: 51 | N113: 20 | O113: 12 | P113: 53 | Q113: 9 | R113: 58 | S113: 60 | T113: 38 | U113: 24 | V113: 42 | W113: 41 | X113: 49 | Y113: 44 | Z113: 61 | AA113: 63 | AB113: 26 | AC113: 52 | AD113: 43 | AE113: 35 | AF113: 54 | AG113: 31 | AH113: 57 | AI113: 1410 | AJ113: 72 | AK113: 1482
A114: 111 | B114: KRESKIN (ST. LOUIS,MO) | C114: 56 | D114: 45 | E114: 61 | F114: 44 | G114: 22 | H114: 59 | I114: 43 | J114: 55 | K114: 60 | L114: 28 | M114: 50 | N114: 41 | O114: 40 | P114: 54 | Q114: 26 | R114: 63 | S114: 64 | T114: 46 | U114: 18 | V114: 51 | W114: 17 | X114: 58 | Y114: 24 | Z114: 52 | AA114: 62 | AB114: 34 | AC114: 30 | AD114: 32 | AE114: 38 | AF114: 53 | AG114: 29 | AH114: 57 | AI114: 1412 | AJ114: 69 | AK114: 1481
A115: 111 | B115: PURDUE_PETE (ARLINGTON HEIGHTS,IL) | C115: 62 | D115: 34 | E115: 56 | F115: 45 | G115: 31 | H115: 51 | I115: 43 | J115: 57 | K115: 63 | L115: 32 | M115: 55 | N115: 44 | O115: 25 | P115: 54 | Q115: 42 | R115: 58 | S115: 64 | T115: 26 | U115: 11 | V115: 39 | W115: 23 | X115: 49 | Y115: 40 | Z115: 60 | AA115: 59 | AB115: 9 | AC115: 38 | AD115: 50 | AE115: 46 | AF115: 52 | AG115: 30 | AH115: 61 | AI115: 1409 | AJ115: 72 | AK115: 1481
A116: 111 | B116: PURDUE_PETE II (ARLINGTON HEIGHTS,IL) | C116: 63 | D116: 34 | E116: 56 | F116: 45 | G116: 31 | H116: 51 | I116: 43 | J116: 57 | K116: 58 | L116: 32 | M116: 55 | N116: 44 | O116: 25 | P116: 54 | Q116: 42 | R116: 61 | S116: 60 | T116: 26 | U116: 11 | V116: 39 | W116: 23 | X116: 49 | Y116: 40 | Z116: 64 | AA116: 62 | AB116: 9 | AC116: 38 | AD116: 50 | AE116: 46 | AF116: 52 | AG116: 30 | AH116: 59 | AI116: 1409 | AJ116: 72 | AK116: 1481
A117: 114 | B117: GARY PIETRZAK III (REDONDO BEACH,CA) | C117: 63 | D117: 32 | E117: 53 | F117: 45 | G117: 43 | H117: 55 | I117: 57 | J117: 48 | K117: 56 | L117: 35 | M117: 59 | N117: 39 | O117: 21 | P117: 61 | Q117: 23 | R117: 52 | S117: 64 | T117: 33 | U117: 17 | V117: 54 | W117: 19 | X117: 44 | Y117: 42 | Z117: 58 | AA117: 62 | AB117: 25 | AC117: 30 | AD117: 40 | AE117: 29 | AF117: 51 | AG117: 38 | AH117: 60 | AI117: 1408 | AJ117: 72 | AK117: 1480
A118: 115 | B118: DANSHIVE 1 (WINFIELD,IL) | C118: 59 | D118: 28 | E118: 56 | F118: 40 | G118: 13 | H118: 51 | I118: 41 | J118: 63 | K118: 58 | L118: 38 | M118: 46 | N118: 47 | O118: 12 | P118: 43 | Q118: 29 | R118: 62 | S118: 64 | T118: 33 | U118: 16 | V118: 48 | W118: 24 | X118: 55 | Y118: 42 | Z118: 57 | AA118: 60 | AB118: 30 | AC118: 50 | AD118: 44 | AE118: 45 | AF118: 54 | AG118: 34 | AH118: 61 | AI118: 1403 | AJ118: 75 | AK118: 1478
A119: 116 | B119: MIKE JASPERSEN (LONG BEACH,CA) | C119: 64 | D119: 36 | E119: 50 | F119: 44 | G119: 48 | H119: 56 | I119: 43 | J119: 57 | K119: 49 | L119: 28 | M119: 61 | N119: 32 | O119: 20 | P119: 46 | Q119: 23 | R119: 53 | S119: 54 | T119: 27 | U119: 18 | V119: 59 | W119: 22 | X119: 52 | Y119: 35 | Z119: 62 | AA119: 63 | AB119: 38 | AC119: 25 | AD119: 51 | AE119: 55 | AF119: 47 | AG119: 31 | AH119: 58 | AI119: 1407 | AJ119: 69 | AK119: 1476
A120: 117 | B120: MICHAEL CIESLIK (CHICAGO,IL) | C120: 63 | D120: 21 | E120: 52 | F120: 39 | G120: 43 | H120: 58 | I120: 47 | J120: 32 | K120: 33 | L120: 38 | M120: 53 | N120: 42 | O120: 27 | P120: 57 | Q120: 31 | R120: 61 | S120: 64 | T120: 37 | U120: 15 | V120: 41 | W120: 25 | X120: 56 | Y120: 30 | Z120: 60 | AA120: 62 | AB120: 36 | AC120: 51 | AD120: 40 | AE120: 46 | AF120: 55 | AG120: 29 | AH120: 59 | AI120: 1403 | AJ120: 72 | AK120: 1475
A121: 118 | B121: CHRIS GRANDE II (MISHAWAKA,IN) | C121: 56 | D121: 32 | E121: 63 | F121: 48 | G121: 31 | H121: 55 | I121: 60 | J121: 46 | K121: 54 | L121: 45 | M121: 57 | N121: 44 | O121: 43 | P121: 61 | Q121: 42 | R121: 53 | S121: 64 | T121: 24 | U121: 10 | V121: 35 | W121: 4 | X121: 36 | Y121: 37 | Z121: 58 | AA121: 62 | AB121: 38 | AC121: 19 | AD121: 52 | AE121: 40 | AF121: 59 | AG121: 17 | AH121: 51 | AI121: 1396 | AJ121: 75 | AK121: 1471
A122: 119 | B122: JOEJOO2 (JENISON,MI) | C122: 64 | D122: 32 | E122: 41 | F122: 45 | G122: 40 | H122: 60 | I122: 36 | J122: 49 | K122: 62 | L122: 31 | M122: 42 | N122: 55 | O122: 14 | P122: 59 | Q122: 27 | R122: 50 | S122: 58 | T122: 30 | U122: 23 | V122: 48 | W122: 15 | X122: 51 | Y122: 34 | Z122: 63 | AA122: 57 | AB122: 29 | AC122: 43 | AD122: 53 | AE122: 37 | AF122: 52 | AG122: 33 | AH122: 61 | AI122: 1394 | AJ122: 72 | AK122: 1466
A123: 120 | B123: JEFF DUCKWORTH (SUGAR GROVE,IL) | C123: 63 | D123: 44 | E123: 56 | F123: 48 | G123: 29 | H123: 59 | I123: 37 | J123: 54 | K123: 60 | L123: 19 | M123: 52 | N123: 45 | O123: 36 | P123: 61 | Q123: 21 | R123: 53 | S123: 62 | T123: 39 | U123: 17 | V123: 55 | W123: 34 | X123: 50 | Y123: 25 | Z123: 57 | AA123: 64 | AB123: 41 | AC123: 30 | AD123: 32 | AE123: 20 | AF123: 49 | AG123: 23 | AH123: 58 | AI123: 1393 | AJ123: 69 | AK123: 1462
A124: 121 | B124: JEFF GOLDMAN (NORWALK,CT) | C124: 58 | D124: 33 | E124: 57 | F124: 39 | G124: 21 | H124: 61 | I124: 46 | J124: 55 | K124: 63 | L124: 40 | M124: 51 | N124: 38 | O124: 42 | P124: 53 | Q124: 17 | R124: 60 | S124: 64 | T124: 47 | U124: 25 | V124: 41 | W124: 20 | X124: 49 | Y124: 18 | Z124: 56 | AA124: 59 | AB124: 29 | AC124: 23 | AD124: 37 | AE124: 36 | AF124: 54 | AG124: 31 | AH124: 62 | AI124: 1385 | AJ124: 72 | AK124: 1457
A125: 122 | B125: GARY PIETRZAK II (REDONDO BEACH,CA) | C125: 62 | D125: 32 | E125: 56 | F125: 45 | G125: 31 | H125: 55 | I125: 57 | J125: 48 | K125: 63 | L125: 27 | M125: 53 | N125: 39 | O125: 19 | P125: 52 | Q125: 23 | R125: 59 | S125: 64 | T125: 33 | U125: 17 | V125: 54 | W125: 21 | X125: 44 | Y125: 42 | Z125: 58 | AA125: 60 | AB125: 25 | AC125: 30 | AD125: 40 | AE125: 29 | AF125: 51 | AG125: 38 | AH125: 61 | AI125: 1388 | AJ125: 66 | AK125: 1454
A126: 123 | B126: JIM (ELMHURST,IL) | C126: 62 | D126: 33 | E126: 28 | F126: 56 | G126: 38 | H126: 47 | I126: 26 | J126: 60 | K126: 59 | L126: 40 | M126: 46 | N126: 49 | O126: 34 | P126: 55 | Q126: 24 | R126: 61 | S126: 64 | T126: 41 | U126: 15 | V126: 54 | W126: 17 | X126: 44 | Y126: 22 | Z126: 57 | AA126: 63 | AB126: 29 | AC126: 30 | AD126: 48 | AE126: 42 | AF126: 53 | AG126: 21 | AH126: 58 | AI126: 1376 | AJ126: 69 | AK126: 1445
A127: 123 | B127: RICH LANDER (DOWNERS GROVE,IL) | C127: 55 | D127: 29 | E127: 60 | F127: 47 | G127: 21 | H127: 54 | I127: 30 | J127: 62 | K127: 59 | L127: 24 | M127: 52 | N127: 40 | O127: 42 | P127: 56 | Q127: 31 | R127: 63 | S127: 64 | T127: 37 | U127: 19 | V127: 53 | W127: 15 | X127: 45 | Y127: 38 | Z127: 58 | AA127: 61 | AB127: 35 | AC127: 18 | AD127: 27 | AE127: 51 | AF127: 48 | AG127: 28 | AH127: 57 | AI127: 1379 | AJ127: 66 | AK127: 1445
A128: 125 | B128: SECOND ENTRY (CHICAGO,IL) | C128: 64 | D128: 25 | E128: 32 | F128: 48 | G128: 28 | H128: 53 | I128: 38 | J128: 58 | K128: 60 | L128: 24 | M128: 44 | N128: 52 | O128: 21 | P128: 61 | Q128: 30 | R128: 56 | S128: 62 | T128: 26 | U128: 17 | V128: 50 | W128: 22 | X128: 57 | Y128: 37 | Z128: 55 | AA128: 59 | AB128: 23 | AC128: 51 | AD128: 47 | AE128: 27 | AF128: 54 | AG128: 31 | AH128: 63 | AI128: 1375 | AJ128: 60 | AK128: 1435
A129: 126 | B129: JAMES THOMAS 2 (HERNANDO,FL) | C129: 63 | D129: 33 | E129: 45 | F129: 49 | G129: 24 | H129: 53 | I129: 28 | J129: 57 | K129: 58 | L129: 30 | M129: 46 | N129: 50 | O129: 21 | P129: 54 | Q129: 25 | R129: 62 | S129: 59 | T129: 31 | U129: 20 | V129: 47 | W129: 22 | X129: 55 | Y129: 26 | Z129: 64 | AA129: 61 | AB129: 32 | AC129: 23 | AD129: 48 | AE129: 44 | AF129: 56 | AG129: 27 | AH129: 60 | AI129: 1373 | AJ129: 60 | AK129: 1433
A130: 127 | B130: JAK (BARRINGTON,IL) | C130: 63 | D130: 32 | E130: 26 | F130: 25 | G130: 57 | H130: 46 | I130: 40 | J130: 54 | K130: 55 | L130: 29 | M130: 58 | N130: 39 | O130: 36 | P130: 56 | Q130: 10 | R130: 61 | S130: 59 | T130: 33 | U130: 18 | V130: 51 | W130: 41 | X130: 52 | Y130: 20 | Z130: 62 | AA130: 60 | AB130: 22 | AC130: 31 | AD130: 53 | AE130: 42 | AF130: 49 | AG130: 21 | AH130: 64 | AI130: =(SUM(C130:AH130)) -> 1365 | AJ130: =COUNTIF(C130:AH130,">32")*3 -> 66 | AK130: =AI130+AJ130 -> 1431
A131: 128 | B131: LARRY ROTHENBERG (GLENDALE,WI) | C131: 63 | D131: 45 | E131: 19 | F131: 50 | G131: 20 | H131: 43 | I131: 31 | J131: 42 | K131: 60 | L131: 22 | M131: 48 | N131: 55 | O131: 40 | P131: 62 | Q131: 29 | R131: 56 | S131: 64 | T131: 36 | U131: 17 | V131: 35 | W131: 46 | X131: 53 | Y131: 27 | Z131: 59 | AA131: 58 | AB131: 26 | AC131: 25 | AD131: 34 | AE131: 24 | AF131: 52 | AG131: 23 | AH131: 61 | AI131: 1325 | AJ131: 63 | AK131: 1388
A132: 129 | B132: ART SCHLICHTER (BUFFALO GROVE,IL) | C132: 55 | D132: 23 | E132: 58 | F132: 39 | G132: 47 | H132: 50 | I132: 34 | J132: 63 | K132: 59 | L132: 27 | M132: 31 | N132: 43 | O132: 19 | P132: 51 | Q132: 35 | R132: 62 | S132: 64 | T132: 33 | U132: 17 | V132: 49 | W132: 8 | X132: 40 | Y132: 9 | Z132: 41 | AA132: 61 | AB132: 36 | AC132: 20 | AD132: 52 | AE132: 21 | AF132: 53 | AG132: 37 | AH132: 60 | AI132: 1297 | AJ132: 69 | AK132: 1366
